Workbook

Sheet INGRESO DE DATOS
A13: LLENE LA INFORMACIÓN DEL ASEGURADO PROPUESTO:
B15: Nombre del Asegurado Titular | D15: JOHN DOE
B17: Número de adultos en la póliza | D17: 2 | F17: Número de niños en la póliza | H17: 2
B19: Edad del Asegurado Titular | D19: 32 | F19: Edad del/la cónyuge | H19: 46
C21: Cotizador por | D21: NOMBRE DEL AGENTE
A25: SELECCIONE EL PRODUCTO PARA VER LA COTIZACIÓN CORRESPONDIENTE:
B27: Número de niños menores de 16 años: (Incluir en ésta casilla solo la cantidad de niños cuya edad sea menor de 16 años) | D27: Número de niños menores de 10 años: (Incluir en ésta casilla solo la cantidad de niños cuya edad sea menor de 10 años)
B30: 1 | D30: 1

Sheet Global Premier Health Plan
A13: Global Premier Health Plan | D13: Nombre del Asegurado Titular: | F13: =+'INGRESO DE DATOS'!$D$15 -> JOHN DOE
E15: Cotizado por: | F15: =+'INGRESO DE DATOS'!$D$21 -> NOMBRE DEL AGENTE
D17: Número de adultos en la póliza: | F17: =+'INGRESO DE DATOS'!$D$17 -> 2 | H17: Edad del Asegurado Titular: | I17: =+'INGRESO DE DATOS'!$D$19 -> 32
D19: Número de niños en la póliza: | F19: =+'INGRESO DE DATOS'!$H$17 -> 2 | H19: Edad del/la conyuge: | I19: =+'INGRESO DE DATOS'!$H$19 -> 46
E21: Fecha de la cotización : | F21: =NOW() -> 2023-04-17T12:29:16.010
H22: FALSE
E23: Deducibles | G23: PLAN 1 | H23: PLAN 2 | I23: PLAN 3 | J23: PLAN 4
E24: En el país de residencia | G24: 250 | H24: 2000 | I24: 5000 | J24: 10000
E25: Fuera del país de residencia | G25: 5000 | H25: 2000 | I25: 5000 | J25: 10000
E27: Tarifas Anuales
E28: Prima para Asegurado Titular | G28: =(VLOOKUP($I$17,Tablas!$A$155:$G$221,3,TRUE))*1.1494 -> 6076.096208 | H28: =(VLOOKUP($I$17,Tablas!$A$155:$G$221,4,TRUE))*1.1494 -> 5514.13156 | I28: =(VLOOKUP($I$17,Tablas!$A$155:$G$221,5,TRUE))*1.1494 -> 4050.209744 | J28: =(VLOOKUP($I$17,Tablas!$A$155:$G$221,6,TRUE))*1.1494 -> 2958.32572
E29: Prima para conyuge | G29: =(IF($F$17=1,0,(VLOOKUP($I$19,Tablas!$A$155:$G$221,3,TRUE))))*1.1494 -> 8781.967712 | H29: =(IF($F$17=1,0,(VLOOKUP($I$19,Tablas!$A$155:$G$221,4,TRUE))))*1.1494 -> 7970.675216 | I29: =(IF($F$17=1,0,(VLOOKUP($I$19,Tablas!$A$155:$G$221,5,TRUE))))*1.1494 -> 5721.25344 | J29: =(IF($F$17=1,0,(VLOOKUP($I$19,Tablas!$A$155:$G$221,6,TRUE))))*1.1494 -> 4179.172424
E30: Prima para hijo (s) | G30: =(IF($F$19=0,0,(VLOOKUP($F$19,Tablas!$A$222:$G$224,3,TRUE))))*1.1494 -> 3673.4824 | H30: =(IF($F$19=0,0,(VLOOKUP($F$19,Tablas!$A$222:$G$224,4,TRUE))))*1.1494 -> 3334.271472 | I30: =(IF($F$19=0,0,(VLOOKUP($F$19,Tablas!$A$222:$G$224,5,TRUE))))*1.1494 -> 2537.047632 | J30: =(IF($F$19=0,0,(VLOOKUP($F$19,Tablas!$A$222:$G$224,6,TRUE))))*1.1494 -> 1854.717816
E31: Total de Prima neta | G31: =(SUM(G28:G30)) -> 18531.54632 | H31: =(SUM(H28:H30)) -> 16819.07825 | I31: =(SUM(I28:I30)) -> 12308.51082 | J31: =(SUM(J28:J30)) -> 8992.21596
E32: Costo Administrativo Anual | G32: 86 | H32: 86 | I32: 86 | J32: 86
E33: IVA (14.49%) | G33: =(G32)*0% -> 0 | H33: =(H32)*0% -> 0 | I33: =(I32)*0% -> 0 | J33: =(J32)*0% -> 0
E35: TOTAL ANUAL | G35: =SUM(G31:G33) -> 18617.54632 | H35: =SUM(H31:H33) -> 16905.07825 | I35: =SUM(I31:I33) -> 12394.51082 | J35: =SUM(J31:J33) -> 9078.21596
E37: Tarifas Semianuales
E38: Prima para Asegurado Titular | G38: =(VLOOKUP($I$17,Tablas!$A$530:$G$596,3,TRUE))*1.1494 -> 3220.33099 | H38: =(VLOOKUP($I$17,Tablas!$A$530:$G$596,4,TRUE))*1.1494 -> 2922.489727 | I38: =(VLOOKUP($I$17,Tablas!$A$530:$G$596,5,TRUE))*1.1494 -> 2146.611164 | J38: =(VLOOKUP($I$17,Tablas!$A$530:$G$596,6,TRUE))*1.1494 -> 1567.912632
E39: Prima para conyuge | G39: =(IF($F$17=1,0,(VLOOKUP($I$19,Tablas!$A$530:$G$596,3,TRUE))))*1.1494 -> 4654.442887 | H39: =(IF($F$17=1,0,(VLOOKUP($I$19,Tablas!$A$530:$G$596,4,TRUE))))*1.1494 -> 4224.457864 | I39: =(IF($F$17=1,0,(VLOOKUP($I$19,Tablas!$A$530:$G$596,5,TRUE))))*1.1494 -> 3032.264323 | J39: =(IF($F$17=1,0,(VLOOKUP($I$19,Tablas!$A$530:$G$596,6,TRUE))))*1.1494 -> 2214.961385
E40: Prima para hijo (s) | G40: =(IF($F$19=0,0,(VLOOKUP($F$19,Tablas!$A$597:$G$599,3,TRUE))))*1.1494 -> 1946.945672 | H40: =(IF($F$19=0,0,(VLOOKUP($F$19,Tablas!$A$597:$G$599,4,TRUE))))*1.1494 -> 1767.16388 | I40: =(IF($F$19=0,0,(VLOOKUP($F$19,Tablas!$A$597:$G$599,5,TRUE))))*1.1494 -> 1344.635245 | J40: =(IF($F$19=0,0,(VLOOKUP($F$19,Tablas!$A$597:$G$599,6,TRUE))))*1.1494 -> 983.0004425
E41: Total de Prima neta | G41: =(SUM(G38:G40)) -> 9821.71955 | H41: =(SUM(H38:H40)) -> 8914.111471 | I41: =(SUM(I38:I40)) -> 6523.510732 | J41: =(SUM(J38:J40)) -> 4765.874459
E42: Costo Administrativo Anual | G42: 86 | H42: 86 | I42: 86 | J42: 86
E43: IVA (14.49%) | G43: =(G42)*0% -> 0 | H43: =(H42)*0% -> 0 | I43: =(I42)*0% -> 0 | J43: =(J42)*0% -> 0
E44: TOTAL de primera cuota | G44: =SUM(G41:G43) -> 9907.71955 | H44: =SUM(H41:H43) -> 9000.111471 | I44: =SUM(I41:I43) -> 6609.510732 | J44: =SUM(J41:J43) -> 4851.874459
E45: Costo de segunda cuota | G45: =G41+G43 -> 9821.71955 | H45: =H41+H43 -> 8914.111471 | I45: =I41+I43 -> 6523.510732 | J45: =J41+J43 -> 4765.874459
E46: TOTAL ANUAL | G46: =G44+G45 -> 19729.4391 | H46: =H44+H45 -> 17914.22294 | I46: 13133.02146 | J46: =J44+J45 -> 9617.748918
E48: Tarifas Trimestrales
E49: Prima para Asegurado Titular | G49: =(VLOOKUP($I$17,Tablas!$A$755:$G$821,3,TRUE))*1.1494 -> 1670.926457 | H49: =(VLOOKUP($I$17,Tablas!$A$755:$G$821,4,TRUE))*1.1494 -> 1516.386179 | I49: =(VLOOKUP($I$17,Tablas!$A$755:$G$821,5,TRUE))*1.1494 -> 1113.80768 | J49: =(VLOOKUP($I$17,Tablas!$A$755:$G$821,6,TRUE))*1.1494 -> 813.539573
E50: Prima para conyuge | G50: =(IF($F$17=1,0,(VLOOKUP($I$19,Tablas!$A$755:$G$821,3,TRUE))))*1.1494 -> 2415.041121 | H50: =(IF($F$17=1,0,(VLOOKUP($I$19,Tablas!$A$755:$G$821,4,TRUE))))*1.1494 -> 2191.935684 | I50: =(IF($F$17=1,0,(VLOOKUP($I$19,Tablas!$A$755:$G$821,5,TRUE))))*1.1494 -> 1573.344696 | J50: =(IF($F$17=1,0,(VLOOKUP($I$19,Tablas!$A$755:$G$821,6,TRUE))))*1.1494 -> 1149.272417
E51: Prima para hijo (s) | G51: =(IF($F$19=0,0,(VLOOKUP($F$19,Tablas!$A$822:$G$824,3,TRUE))))*1.1494 -> 1010.20766 | H51: =(IF($F$19=0,0,(VLOOKUP($F$19,Tablas!$A$822:$G$824,4,TRUE))))*1.1494 -> 916.9246548 | I51: =(IF($F$19=0,0,(VLOOKUP($F$19,Tablas!$A$822:$G$824,5,TRUE))))*1.1494 -> 697.6880988 | J51: =(IF($F$19=0,0,(VLOOKUP($F$19,Tablas!$A$822:$G$824,6,TRUE))))*1.1494 -> 510.0473994
E52: Total de Prima neta | G52: =(SUM(G49:G51)) -> 5096.175238 | H52: =(SUM(H49:H51)) -> 4625.246518 | I52: =(SUM(I49:I51)) -> 3384.840474 | J52: =(SUM(J49:J51)) -> 2472.859389
E53: Costo Administrativo Anual | G53: 86 | H53: 86 | I53: 86 | J53: 86
E54: IVA (14.49%) | G54: =(G53)*0% -> 0 | H54: =(H53)*0% -> 0 | I54: =(I53)*0% -> 0 | J54: =(J53)*0% -> 0
E56: TOTAL de primera cuota | G56: =SUM(G52:G54) -> 5182.175238 | H56: =SUM(H52:H54) -> 4711.246518 | I56: =SUM(I52:I54) -> 3470.840474 | J56: =SUM(J52:J54) -> 2558.859389
E57: Tres (3) cuotas adicionales, cada una de: | G57: =G52+G54 -> 5096.175238 | H57: =H52+H54 -> 4625.246518 | I57: =I52+I54 -> 3384.840474 | J57: =J52+J54 -> 2472.859389
E58: TOTAL ANUAL | G58: =G56+(G57*3) -> 20470.70095 | H58: =H56+(H57*3) -> 18586.98607 | I58: 13625.3619 | J58: =J56+(J57*3) -> 9977.437556
E61: Tarifas Mensuales
E62: Prima para Asegurado Titular | G62: =(VLOOKUP($I$17,Tablas!$A$229:$G$295,3,TRUE))*1.1494 -> 567.1023127 | H62: =(VLOOKUP($I$17,Tablas!$A$229:$G$295,4,TRUE))*1.1494 -> 514.6522789 | I62: =(VLOOKUP($I$17,Tablas!$A$229:$G$295,5,TRUE))*1.1494 -> 378.0195761 | J62: =(VLOOKUP($I$17,Tablas!$A$229:$G$295,6,TRUE))*1.1494 -> 276.1104005
E63: Prima para conyuge | G63: =(IF($F$17=1,0,(VLOOKUP($I$19,Tablas!$A$229:$G$295,3,TRUE))))*1.1494 -> 819.6503198 | H63: =(IF($F$17=1,0,(VLOOKUP($I$19,Tablas!$A229:$G$295,4,TRUE))))*1.1494 -> 743.9296868 | I63: =(IF($F$17=1,0,(VLOOKUP($I$19,Tablas!$A$229:$G$295,5,TRUE))))*1.1494 -> 533.9836544 | J63: =(IF($F$17=1,0,(VLOOKUP($I$19,Tablas!$A$229:$G$295,6,TRUE))))*1.1494 -> 390.0560929
E64: Prima para hijo (s) | G64: =(IF($F$19=0,0,(VLOOKUP($F$19,Tablas!$A$296:$G$298,3,TRUE))))*1.1494 -> 342.8583573 | H64: =(IF($F$19=0,0,(VLOOKUP($F$19,Tablas!$A$296:$G$298,4,TRUE))))*1.1494 -> 311.1986707 | I64: =(IF($F$19=0,0,(VLOOKUP($F$19,Tablas!$A$296:$G$298,5,TRUE))))*1.1494 -> 236.7911123 | J64: =(IF($F$19=0,0,(VLOOKUP($F$19,Tablas!$A$296:$G$298,6,TRUE))))*1.1494 -> 173.1069962
E65: Total de Prima neta | G65: =SUM(G62:G64) -> 1729.61099 | H65: =SUM(H62:H64) -> 1569.780636 | I65: =SUM(I62:I64) -> 1148.794343 | J65: =SUM(J62:J64) -> 839.2734896
E66: Costo Administrativo Anual | G66: 86 | H66: 86 | I66: 86 | J66: 86
E67: IVA (14.49%) | G67: =(G66)*0% -> 0 | H67: =(H66)*0% -> 0 | I67: =(I66)*0% -> 0 | J67: =(J66)*0% -> 0
E69: TOTAL de primera cuota | G69: =SUM(G65:G67) -> 1815.61099 | H69: =SUM(H65:H67) -> 1655.780636 | I69: =SUM(I65:I67) -> 1234.794343 | J69: =SUM(J65:J67) -> 925.2734896
E70: Once (11) cuotas mensuales cada una de: | G70: =G65+G67 -> 1729.61099 | H70: =H65+H67 -> 1569.780636 | I70: =I65+I67 -> 1148.794343 | J70: =J65+J67 -> 839.2734896
E71: TOTAL ANUAL | G71: =G69+(G70*11) -> 20841.33188 | H71: =H69+(H70*11) -> 18923.36764 | I71: =I69+(I70*11) -> 13871.53211 | J71: =J69+(J70*11) -> 10157.28188
E74: Tarifas en US$ - Efectivas a partir del 1ro. de Enero de 2023
E75: Este presupuesto solamente tiene carácter informativo y en ningún momento expresa compromiso legal para suministrarle cobertura de seguro. La emisión de una póliza de seguro Bupa está sujeta a todas las evaluaciones de riesgo por parte de Bupa y a la recepción de todos los pagos de prima requeridos.

Sheet Global Select Health Plan
A13: Global Select Health Plan | D13: Nombre del Asegurado Titular: | F13: =+'INGRESO DE DATOS'!$D$15 -> JOHN DOE
E15: Cotizado por: | F15: =+'INGRESO DE DATOS'!$D$21 -> NOMBRE DEL AGENTE
D17: Número de adultos en la póliza: | F17: =+'INGRESO DE DATOS'!$D$17 -> 2 | H17: Edad del Asegurado Titular: | I17: =+'INGRESO DE DATOS'!$D$19 -> 32
E19: Número de niños en la póliza: | F19: =+'INGRESO DE DATOS'!$H$17 -> 2 | H19: Edad del/la conyuge: | I19: =+'INGRESO DE DATOS'!$H$19 -> 46
E21: Fecha de la cotización: | F21: =NOW() -> 2023-04-17T12:29:16.010
E23: Deducibles | G23: PLAN 1 | H23: PLAN 2 | I23: PLAN 3 | J23: PLAN 4
E24: En el país de residencia | G24: 250 | H24: 2000 | I24: 5000 | J24: 10000
E25: Fuera del país de residencia | G25: 5000 | H25: 2000 | I25: 5000 | J25: 10000
E27: Tarifas Anuales
E28: Prima para Asegurado Titular | G28: =(VLOOKUP($I$17,Tablas!$A$305:$G$371,3,TRUE))*1.1494 -> 4407.903024 | H28: =(VLOOKUP($I$17,Tablas!$A$305:$G$371,4,TRUE))*1.1494 -> 4227.95296 | I28: =(VLOOKUP($I$17,Tablas!$A$305:$G$371,5,TRUE))*1.1494 -> 3115.057904 | J28: =(VLOOKUP($I$17,Tablas!$A$305:$G$371,6,TRUE))*1.1494 -> 2273.835032
E29: Prima para conyuge | G29: =(IF($F$17=1,0,(VLOOKUP($I$19,Tablas!$A$305:$G$371,3,TRUE))))*1.1494 -> 6616.222256 | H29: =(IF($F$17=1,0,(VLOOKUP($I$19,Tablas!$A$305:$G$371,4,TRUE))))*1.1494 -> 6347.170704 | I29: =(IF($F$17=1,0,(VLOOKUP($I$19,Tablas!$A$305:$G$371,5,TRUE))))*1.1494 -> 4561.646768 | J29: =(IF($F$17=1,0,(VLOOKUP($I$19,Tablas!$A$305:$G$371,6,TRUE))))*1.1494 -> 3332.57036
E30: Prima para hijo (s) | G30: =(IF($F$19=0,0,(VLOOKUP($F$19,Tablas!$A$372:$G$374,3,TRUE))))*1.1494 -> 2870.465584 | H30: =(IF($F$19=0,0,(VLOOKUP($F$19,Tablas!$A$372:$G$374,4,TRUE))))*1.1494 -> 2754.284232 | I30: =(IF($F$19=0,0,(VLOOKUP($F$19,Tablas!$A$372:$G$374,5,TRUE))))*1.1494 -> 2109.60876 | J30: =(IF($F$19=0,0,(VLOOKUP($F$19,Tablas!$A$372:$G$374,6,TRUE))))*1.1494 -> 1540.931616
E31: Total de Prima neta | G31: =(SUM(G28:G30)) -> 13894.59086 | H31: =(SUM(H28:H30)) -> 13329.4079 | I31: =(SUM(I28:I30)) -> 9786.313432 | J31: =(SUM(J28:J30)) -> 7147.337008
E32: Costo Administrativo Anual | G32: 86 | H32: 86 | I32: 86 | J32: 86
E33: IVA (14.49%) | G33: =(G32)*0% -> 0 | H33: =(H32)*0% -> 0 | I33: =(I32)*0% -> 0 | J33: =(J32)*0% -> 0
E35: TOTAL ANUAL | G35: =SUM(G31:G33) -> 13980.59086 | H35: =SUM(H31:H33) -> 13415.4079 | I35: =SUM(I31:I33) -> 9872.313432 | J35: =SUM(J31:J33) -> 7233.337008
E37: Tarifas Semianuales
E38: Prima para Asegurado Titular | G38: =(VLOOKUP($I$17,Tablas!$A$605:$G$671,3,TRUE))*1.1494 -> 2336.188603 | H38: =(VLOOKUP($I$17,Tablas!$A$605:$G$671,4,TRUE))*1.1494 -> 2240.815069 | I38: =(VLOOKUP($I$17,Tablas!$A$605:$G$671,5,TRUE))*1.1494 -> 1650.980689 | J38: =(VLOOKUP($I$17,Tablas!$A$605:$G$671,6,TRUE))*1.1494 -> 1205.132567
E39: Prima para conyuge | G39: =(IF($F$17=1,0,(VLOOKUP($I$19,Tablas!$A$605:$G$671,3,TRUE))))*1.1494 -> 3506.597796 | H39: =(IF($F$17=1,0,(VLOOKUP($I$19,Tablas!$A$605:$G$671,4,TRUE))))*1.1494 -> 3364.000473 | I39: =(IF($F$17=1,0,(VLOOKUP($I$19,Tablas!$A$605:$G$671,5,TRUE))))*1.1494 -> 2417.672787 | J39: =(IF($F$17=1,0,(VLOOKUP($I$19,Tablas!$A$605:$G$671,6,TRUE))))*1.1494 -> 1766.262291
E40: Prima para hijo (s) | G40: =(IF($F$19=0,0,(VLOOKUP($F$19,Tablas!$A$672:$G$674,3,TRUE))))*1.1494 -> 1521.34676 | H40: =(IF($F$19=0,0,(VLOOKUP($F$19,Tablas!$A$672:$G$674,4,TRUE))))*1.1494 -> 1459.770643 | I40: =(IF($F$19=0,0,(VLOOKUP($F$19,Tablas!$A$672:$G$674,5,TRUE))))*1.1494 -> 1118.092643 | J40: =(IF($F$19=0,0,(VLOOKUP($F$19,Tablas!$A$672:$G$674,6,TRUE))))*1.1494 -> 816.6937565
E41: Total de Prima neta | G41: =(SUM(G38:G40)) -> 7364.133158 | H41: =(SUM(H38:H40)) -> 7064.586185 | I41: =(SUM(I38:I40)) -> 5186.746119 | J41: =(SUM(J38:J40)) -> 3788.088614
E42: Costo Administrativo Anual | G42: 86 | H42: 86 | I42: 86 | J42: 86
E43: IVA (14.49%) | G43: =(G42)*0% -> 0 | H43: =(H42)*0% -> 0 | I43: =(I42)*0% -> 0
E44: TOTAL de primera cuota | G44: =SUM(G41:G43) -> 7450.133158 | H44: =SUM(H41:H43) -> 7150.586185 | I44: =SUM(I41:I43) -> 5272.746119 | J44: =SUM(J41:J43) -> 3874.088614
E45: Costo de segunda cuota | G45: =G41+G43 -> 7364.133158 | H45: =H41+H43 -> 7064.586185 | I45: =I41+I43 -> 5186.746119 | J45: =J41+J43 -> 3788.088614
E46: TOTAL ANUAL | G46: =G44+G45 -> 14814.26632 | H46: =H44+H45 -> 14215.17237 | I46: 10459.49224 | J46: 7662.177228
E48: Tarifas Trimestrales
E49: Prima para Asegurado Titular | G49: =(VLOOKUP($I$17,Tablas!$A$830:$G$896,3,TRUE))*1.1494 -> 1212.173332 | H49: =(VLOOKUP($I$17,Tablas!$A$830:$G$896,4,TRUE))*1.1494 -> 1162.687064 | I49: =(VLOOKUP($I$17,Tablas!$A$830:$G$896,5,TRUE))*1.1494 -> 856.6409236 | J49: =(VLOOKUP($I$17,Tablas!$A$830:$G$896,6,TRUE))*1.1494 -> 625.3046338
E50: Prima para conyuge | G50: =(IF($F$17=1,0,(VLOOKUP($I$19,Tablas!$A$830:$G$896,3,TRUE))))*1.1494 -> 1819.46112 | H50: =(IF($F$17=1,0,(VLOOKUP($I$19,Tablas!$A$830:$G$896,4,TRUE))))*1.1494 -> 1745.471944 | I50: =(IF($F$17=1,0,(VLOOKUP($I$19,Tablas!$A$830:$G$896,5,TRUE))))*1.1494 -> 1254.452861 | J50: =(IF($F$17=1,0,(VLOOKUP($I$19,Tablas!$A$830:$G$896,6,TRUE))))*1.1494 -> 916.456849
E51: Prima para hijo (s) | G51: =(IF($F$19=0,0,(VLOOKUP($F$19,Tablas!$A$897:$G$899,3,TRUE))))*1.1494 -> 789.3780356 | H51: =(IF($F$19=0,0,(VLOOKUP($F$19,Tablas!$A$897:$G$899,4,TRUE))))*1.1494 -> 757.4281638 | I51: =(IF($F$19=0,0,(VLOOKUP($F$19,Tablas!$A$897:$G$899,5,TRUE))))*1.1494 -> 580.142409 | J51: =(IF($F$19=0,0,(VLOOKUP($F$19,Tablas!$A$897:$G$899,6,TRUE))))*1.1494 -> 423.7561944
E52: Total de Prima neta | G52: =(SUM(G49:G51)) -> 3821.012488 | H52: =(SUM(H49:H51)) -> 3665.587171 | I52: =(SUM(I49:I51)) -> 2691.236194 | J52: =(SUM(J49:J51)) -> 1965.517677
E53: Costo Administrativo Anual | G53: 86 | H53: 86 | I53: 86 | J53: 86
E54: IVA (14.49%) | G54: =(G53)*0% -> 0 | H54: =(H53)*0% -> 0 | I54: =(I53)*0% -> 0 | J54: =(J53)*0% -> 0
E56: TOTAL de primera cuota | G56: =SUM(G52:G54) -> 3907.012488 | H56: =SUM(H52:H54) -> 3751.587171 | I56: =SUM(I52:I54) -> 2777.236194 | J56: =SUM(J52:J54) -> 2051.517677
E57: Tres (3) cuotas adicionales, cada una de: | G57: =G52+G54 -> 3821.012488 | H57: =H52+H54 -> 3665.587171 | I57: =I52+I54 -> 2691.236194 | J57: =J52+J54 -> 1965.517677
E58: TOTAL ANUAL | G58: =G56+(G57*3) -> 15370.04995 | H58: =H56+(H57*3) -> 14748.34869 | I58: 10850.94478 | J58: =J56+(J57*3) -> 7948.070709
E61: Tarifas Mensuales
E62: Prima para Asegurado Titular | G62: =(VLOOKUP($I$17,Tablas!$A$379:$G$445,3,TRUE))*1.1494 -> 411.4042822 | H62: =(VLOOKUP($I$17,Tablas!$A$379:$G$445,4,TRUE))*1.1494 -> 394.6089429 | I62: =(VLOOKUP($I$17,Tablas!$A$379:$G$445,5,TRUE))*1.1494 -> 290.7387377 | J62: =(VLOOKUP($I$17,Tablas!$A$379:$G$445,6,TRUE))*1.1494 -> 212.224603
E63: Prima para conyuge | G63: =(IF($F$17=1,0,(VLOOKUP($I$19,Tablas!$A$379:$G$445,3,TRUE))))*1.1494 -> 617.5140772 | H63: =(IF($F$17=1,0,(VLOOKUP($I$19,Tablas!$A$379:$G$445,4,TRUE))))*1.1494 -> 592.402599 | I63: =(IF($F$17=1,0,(VLOOKUP($I$19,Tablas!$A$379:$G$445,5,TRUE))))*1.1494 -> 425.7536983 | J63: =(IF($F$17=1,0,(VLOOKUP($I$19,Tablas!$A$379:$G$445,6,TRUE))))*1.1494 -> 311.0399003
E64: Prima para hijo (s) | G64: =(IF($F$19=0,0,(VLOOKUP($F$19,Tablas!$A$446:$G$448,3,TRUE))))*1.1494 -> 267.9101212 | H64: =(IF($F$19=0,0,(VLOOKUP($F$19,Tablas!$A$446:$G$448,4,TRUE))))*1.1494 -> 257.0665283 | I64: =(IF($F$19=0,0,(VLOOKUP($F$19,Tablas!$A$446:$G$448,5,TRUE))))*1.1494 -> 196.8968176 | J64: =(IF($F$19=0,0,(VLOOKUP($F$19,Tablas!$A$446:$G$448,6,TRUE))))*1.1494 -> 143.8202842
E65: Total de Prima neta | G65: =(SUM(G62:G64)) -> 1296.828481 | H65: =(SUM(H62:H64)) -> 1244.07807 | I65: =(SUM(I62:I64)) -> 913.3892537 | J65: =(SUM(J62:J64)) -> 667.0847874
E66: Costo Administrativo Anual | G66: 86 | H66: 86 | I66: 86 | J66: 86
E67: IVA (14.49%) | G67: =(G66)*0% -> 0 | H67: =(H66)*0% -> 0 | I67: =(I66)*0% -> 0 | J67: =(J66)*0% -> 0
E69: TOTAL de primera cuota | G69: =SUM(G65:G67) -> 1382.828481 | H69: =SUM(H65:H67) -> 1330.07807 | I69: =SUM(I65:I67) -> 999.3892537 | J69: =SUM(J65:J67) -> 753.0847874
E70: Once (11) cuotas mensuales cada una de: | G70: =G65+G67 -> 1296.828481 | H70: =H65+H67 -> 1244.07807 | I70: =I65+I67 -> 913.3892537 | J70: =J65+J67 -> 667.0847874
E71: TOTAL ANUAL | G71: =G69+(G70*11) -> 15647.94177 | H71: =H69+(H70*11) -> 15014.93684 | I71: =I69+(I70*11) -> 11046.67104 | J71: =J69+(J70*11) -> 8091.017449
E73: Tarifas en US$ - Efectivas a partir del 1ro. de Enero de 2023
E74: Este presupuesto solamente tiene carácter informativo y en ningún momento expresa compromiso legal para suministrarle cobertura de seguro. La emisión de una póliza de seguro Bupa está sujeta a todas las evaluaciones de riesgo por parte de Bupa y a la recepción de todos los pagos de prima requeridos.

Sheet Resumen tarifas
A20: Cotización de Seguro Médico - Global Health Plans
A22: Nombre del Asegurado Titular | C22: =+'INGRESO DE DATOS'!$D$15 -> JOHN DOE
B23: Cotizado por | C23: =+'INGRESO DE DATOS'!$D$21 -> NOMBRE DEL AGENTE
A25: Número de adultos en la póliza | C25: =+'INGRESO DE DATOS'!$D$17 -> 2 | E25: Edad del Asegurado Titular | G25: =+'INGRESO DE DATOS'!$D$19 -> 32
A28: Número de niños en la póliza | C28: =+'INGRESO DE DATOS'!$H$17 -> 2 | E28: Edad del/la cónyuge | G28: =+'INGRESO DE DATOS'!$H$19 -> 46
C31: Fecha de la Cotización: | D31: =NOW() -> 2023-04-17T12:29:16.010
A33: Bupa Global Ultimtate Health Plan
A34: Deducibles | C34: PLAN 1 | D34: PLAN 2
A35: En el país de residencia | C35: 0 | D35: 1000
A36: Fuera del país de residencia | C36: 0 | D36: 1000
C37: Tarifas Anuales
C38: =#REF! ->  | D38: =#REF! -> 
C39: Tarifas Semi-anuales
C40: =#REF! ->  | D40: =#REF! -> 
C41: Tarifas Trimestrales
C42: =#REF! ->  | D42: =#REF! -> 
C43: Tarifas Mensuales
C44: =#REF! ->  | D44: =#REF! -> 
A45: Ahorros en tarifas de prima para niños* | C45: =#REF! ->  | D45: =#REF! -> 
A47: Bupa Global Elite Health Plan
A48: Deducibles | D48: PLAN 1 | E48: PLAN 2 | F48: PLAN 3 | G48: PLAN 4 | H48: PLAN 5
A49: En el país de residencia | D49: 250 | E49: 2000 | F49: 3500 | G49: 5000 | H49: 10000
A50: Fuera del país de residencia | D50: 5000 | E50: 2000 | F50: 3500 | G50: 5000 | H50: 10000
D51: Tarifas Anuales
D52: =+#REF! ->  | E52: =+#REF! ->  | F52: =+#REF! ->  | G52: =+#REF! ->  | H52: =+#REF! -> 
D53: Tarifas Semi-anuales
D54: =+#REF! ->  | E54: =+#REF! ->  | F54: =+#REF! ->  | G54: =+#REF! ->  | H54: =+#REF! -> 
D55: Tarifas Trimestrales
D56: =+#REF! ->  | E56: =+#REF! ->  | F56: =+#REF! ->  | G56: =+#REF! ->  | H56: =+#REF! -> 
D57: Tarifas Mensuales
D58: =+#REF! ->  | E58: =+#REF! ->  | F58: =+#REF! ->  | G58: =+#REF! ->  | H58: =+#REF! -> 
A59: Ahorros en tarifas de prima para niños* | D59: =+#REF! ->  | E59: =+#REF! ->  | F59: =+#REF! ->  | G59: =+#REF! ->  | H59: =+#REF! -> 
A61: Bupa Global Premier Health Plan
A62: Deducibles | E62: PLAN 1 | F62: PLAN 2 | G62: PLAN 3 | H62: PLAN 4
A63: En el país de residencia | E63: 250 | F63: 2000 | G63: 5000 | H63: 10000
A64: Fuera del país de residencia | E64: 5000 | F64: 2000 | G64: 5000 | H64: 10000
E65: Tarifas Anuales
E66: =+'Global Premier Health Plan'!G35 -> 18617.54632 | F66: =+'Global Premier Health Plan'!H35 -> 16905.07825 | G66: =+'Global Premier Health Plan'!I35 -> 12394.51082 | H66: =+'Global Premier Health Plan'!J35 -> 9078.21596
E67: Tarifas Semi-anuales
E68: =+'Global Premier Health Plan'!G45 -> 9821.71955 | F68: =+'Global Premier Health Plan'!H45 -> 8914.111471 | G68: =+'Global Premier Health Plan'!I45 -> 6523.510732 | H68: =+'Global Premier Health Plan'!J45 -> 4765.874459
E69: Tarifas Trimestrales
E70: =+'Global Premier Health Plan'!G57 -> 5096.175238 | F70: =+'Global Premier Health Plan'!H57 -> 4625.246518 | G70: =+'Global Premier Health Plan'!I57 -> 3384.840474 | H70: =+'Global Premier Health Plan'!J57 -> 2472.859389
E71: Tarifas Mensuales
E72: =+'Global Premier Health Plan'!G70 -> 1729.61099 | F72: =+'Global Premier Health Plan'!H70 -> 1569.780636 | G72: =+'Global Premier Health Plan'!I70 -> 1148.794343 | H72: =+'Global Premier Health Plan'!J70 -> 839.2734896
A74: Bupa Global Select Health Plan
A75: Deducibles | E75: PLAN 1 | F75: PLAN 2 | G75: PLAN 3 | H75: PLAN 4
A76: En el país de residencia | E76: 250 | F76: 2000 | G76: 5000 | H76: 10000
A77: Fuera del país de residencia | E77: 5000 | F77: 2000 | G77: 5000 | H77: 10000
E78: Tarifas Anuales
E79: =+'Global Select Health Plan'!G35 -> 13980.59086 | F79: =+'Global Select Health Plan'!H35 -> 13415.4079 | G79: =+'Global Select Health Plan'!I35 -> 9872.313432 | H79: =+'Global Select Health Plan'!J35 -> 7233.337008
E80: Tarifas Semi-anuales
E81: =+'Global Select Health Plan'!G45 -> 7364.133158 | F81: =+'Global Select Health Plan'!H45 -> 7064.586185 | G81: =+'Global Select Health Plan'!I45 -> 5186.746119 | H81: =+'Global Select Health Plan'!J45 -> 3788.088614
E82: Tarifas Trimestrales
E83: =+'Global Select Health Plan'!G57 -> 3821.012488 | F83: =+'Global Select Health Plan'!H57 -> 3665.587171 | G83: =+'Global Select Health Plan'!I57 -> 2691.236194 | H83: =+'Global Select Health Plan'!J57 -> 1965.517677
E84: Tarifas Mensuales
E85: =+'Global Select Health Plan'!G70 -> 1296.828481 | F85: =+'Global Select Health Plan'!H70 -> 1244.07807 | G85: =+'Global Select Health Plan'!I70 -> 913.3892537 | H85: =+'Global Select Health Plan'!J70 -> 667.0847874
A87: Bupa Global Major Medical Health Plan
A88: Deducibles | C88: PLAN 1 | D88: PLAN 2
A89: En el país de residencia | C89: 10000 | D89: 20000
A90: Fuera del país de residencia | C90: 10000 | D90: 20000
C91: Tarifas Anuales
C92: =#REF! ->  | D92: =#REF! -> 
C93: Tarifas Semi-anuales
C94: =#REF! ->  | D94: =#REF! -> 
C95: Tarifas Trimestrales
C96: =#REF! ->  | D96: =#REF! -> 
C97: Tarifas Mensuales
C98: =#REF! ->  | D98: =#REF! -> 
A100: Notas:
A101: Primas anuales incluyen US$86.00 por Costo Administrativo Anual
A102: Costo administrativo anual incluido en el primer pago de los pagos semestrales, trimestrales y mensuales
A103: *Basado en un modo de pago anual
A105: Tarifas en US$ - Efectivas a partir del 1ro. de Enero de 2023
A106: Este presupuesto solamente tiene carácter informativo y en ningún momento expresa compromiso legal para suministrarle cobertura de seguro. La emisión de una póliza de seguro Bupa está sujeta a todas las evaluaciones de riesgo por parte de Bupa y a la recepción de todos los pagos de prima requeridos.

Sheet Tablas (hidden)
A2: BUPA GLOBAL ELITE | I2: FACTOR MENSUAL: | K2: 0.09333333333 | L2: 0.09333333333 | M2: 0.09333333333 | N2: 0.09333333333 | O2: 0.09333333333 | P2: 0.09333333333
A3: TARIFAS ANUALES | I3: FACTOR TRIMESTRAL: | K3: 0.275 | L3: 0.275 | M3: 0.275 | N3: 0.275 | O3: 0.275 | P3: 0.275
A4: EDAD | I4: FACTOR SEMIANUAL: | K4: 0.53 | L4: 0.53 | M4: 0.53 | N4: 0.53 | O4: 0.53 | P4: 0.53
C5: 250 | D5: 2000 | E5: 3500 | F5: 5000 | G5: 10000 | U5: 2 | V5: 6 | W5: 10 | X5: 14 | Y5: 18
A6: 18 | B6: 18 | C6: =O6 -> 8460.05 | D6: =P6 -> 7413.7 | E6: =Q6 -> 6158.25 | F6: =R6 -> 5343.1 | G6: =S6 -> 4068.95 | I6: 9953 | J6: 8722 | K6: 7245 | L6: 6286 | M6: 4787 | O6: =(I6)*0.85 -> 8460.05 | P6: =(J6)*0.85 -> 7413.7 | Q6: 6158.25 | R6: 5343.1 | S6: 4068.95 | U6: 0 | V6: 0 | W6: 0 | X6: 0 | Y6: 0
A7: 19 | B7: 18 | C7: =O7 -> 8460.05 | D7: =P7 -> 7413.7 | E7: =Q7 -> 6158.25 | F7: =R7 -> 5343.1 | G7: =S7 -> 4068.95 | I7: 9953 | J7: 8722 | K7: 7245 | L7: 6286 | M7: 4787 | O7: =(I7)*0.85 -> 8460.05 | P7: =(J7)*0.85 -> 7413.7 | Q7: =(K7)*0.85 -> 6158.25 | R7: =(L7)*0.85 -> 5343.1 | S7: =(M7)*0.85 -> 4068.95 | U7: 0 | V7: 0 | W7: 0 | X7: 0 | Y7: 0
A8: 20 | B8: 18 | C8: 8460.05 | D8: 7413.7 | E8: 6158.25 | F8: 5343.1 | G8: 4068.95 | I8: 9953 | J8: 8722 | K8: 7245 | L8: 6286 | M8: 4787 | O8: 8460.05 | P8: 7413.7 | Q8: 6158.25 | R8: 5343.1 | S8: 4068.95 | U8: 0 | V8: 0 | W8: 0 | X8: 0 | Y8: 0
A9: 21 | B9: 18 | C9: 8460.05 | D9: 7413.7 | E9: 6158.25 | F9: 5343.1 | G9: 4068.95 | I9: 9953 | J9: 8722 | K9: 7245 | L9: 6286 | M9: 4787 | O9: 8460.05 | P9: 7413.7 | Q9: 6158.25 | R9: 5343.1 | S9: 4068.95 | U9: 0 | V9: 0 | W9: 0 | X9: 0 | Y9: 0
A10: 22 | B10: 18 | C10: 8460.05 | D10: 7413.7 | E10: 6158.25 | F10: 5343.1 | G10: 4068.95 | I10: 9953 | J10: 8722 | K10: 7245 | L10: 6286 | M10: 4787 | O10: 8460.05 | P10: 7413.7 | Q10: 6158.25 | R10: 5343.1 | S10: 4068.95 | U10: 0 | V10: 0 | W10: 0 | X10: 0 | Y10: 0
A11: 23 | B11: 18 | C11: 8460.05 | D11: 7413.7 | E11: 6158.25 | F11: 5343.1 | G11: 4068.95 | I11: 9953 | J11: 8722 | K11: 7245 | L11: 6286 | M11: 4787 | O11: 8460.05 | P11: 7413.7 | Q11: 6158.25 | R11: 5343.1 | S11: 4068.95 | U11: 0 | V11: 0 | W11: 0 | X11: 0 | Y11: 0
A12: 24 | B12: 18 | C12: 8460.05 | D12: 7413.7 | E12: 6158.25 | F12: 5343.1 | G12: 4068.95 | I12: 9953 | J12: 8722 | K12: 7245 | L12: 6286 | M12: 4787 | O12: 8460.05 | P12: 7413.7 | Q12: 6158.25 | R12: 5343.1 | S12: 4068.95 | U12: 0 | V12: 0 | W12: 0 | X12: 0 | Y12: 0
A13: 25 | B13: 25 | C13: 9038.9 | D13: 7922 | E13: 6540.75 | F13: 5671.2 | G13: 4322.25 | I13: 10634 | J13: 9320 | K13: 7695 | L13: 6672 | M13: 5085 | O13: 9038.9 | P13: 7922 | Q13: 6540.75 | R13: 5671.2 | S13: 4322.25 | U13: 0 | V13: 0 | W13: 0 | X13: 0 | Y13: 0
A14: 26 | B14: 25 | C14: 9038.9 | D14: 7922 | E14: 6540.75 | F14: 5671.2 | G14: 4322.25 | I14: 10634 | J14: 9320 | K14: 7695 | L14: 6672 | M14: 5085 | O14: 9038.9 | P14: 7922 | Q14: 6540.75 | R14: 5671.2 | S14: 4322.25 | U14: 0 | V14: 0 | W14: 0 | X14: 0 | Y14: 0
A15: 27 | B15: 25 | C15: 9038.9 | D15: 7922 | E15: 6540.75 | F15: 5671.2 | G15: 4322.25 | I15: 10634 | J15: 9320 | K15: 7695 | L15: 6672 | M15: 5085 | O15: 9038.9 | P15: 7922 | Q15: 6540.75 | R15: 5671.2 | S15: 4322.25 | U15: 0 | V15: 0 | W15: 0 | X15: 0 | Y15: 0
A16: 28 | B16: 25 | C16: 9038.9 | D16: 7922 | E16: 6540.75 | F16: 5671.2 | G16: 4322.25 | I16: 10634 | J16: 9320 | K16: 7695 | L16: 6672 | M16: 5085 | O16: 9038.9 | P16: 7922 | Q16: 6540.75 | R16: 5671.2 | S16: 4322.25 | U16: 0 | V16: 0 | W16: 0 | X16: 0 | Y16: 0
A17: 29 | B17: 25 | C17: 9038.9 | D17: 7922 | E17: 6540.75 | F17: 5671.2 | G17: 4322.25 | I17: 10634 | J17: 9320 | K17: 7695 | L17: 6672 | M17: 5085 | O17: 9038.9 | P17: 7922 | Q17: 6540.75 | R17: 5671.2 | S17: 4322.25 | U17: 0 | V17: 0 | W17: 0 | X17: 0 | Y17: 0
A18: 30 | B18: 30 | C18: 10051.25 | D18: 8810.25 | E18: 7219.9 | F18: 6259.4 | G18: 4767.65 | I18: 11825 | J18: 10365 | K18: 8494 | L18: 7364 | M18: 5609 | O18: 10051.25 | P18: 8810.25 | Q18: 7219.9 | R18: 6259.4 | S18: 4767.65 | U18: 0 | V18: 0 | W18: 0 | X18: 0 | Y18: 0
A19: 31 | B19: 30 | C19: 10051.25 | D19: 8810.25 | E19: 7219.9 | F19: 6259.4 | G19: 4767.65 | I19: 11825 | J19: 10365 | K19: 8494 | L19: 7364 | M19: 5609 | O19: 10051.25 | P19: 8810.25 | Q19: 7219.9 | R19: 6259.4 | S19: 4767.65 | U19: 0 | V19: 0 | W19: 0 | X19: 0 | Y19: 0
A20: 32 | B20: 30 | C20: 10051.25 | D20: 8810.25 | E20: 7219.9 | F20: 6259.4 | G20: 4767.65 | I20: 11825 | J20: 10365 | K20: 8494 | L20: 7364 | M20: 5609 | O20: 10051.25 | P20: 8810.25 | Q20: 7219.9 | R20: 6259.4 | S20: 4767.65 | U20: 0 | V20: 0 | W20: 0 | X20: 0 | Y20: 0
A21: 33 | B21: 30 | C21: 10051.25 | D21: 8810.25 | E21: 7219.9 | F21: 6259.4 | G21: 4767.65 | I21: 11825 | J21: 10365 | K21: 8494 | L21: 7364 | M21: 5609 | O21: 10051.25 | P21: 8810.25 | Q21: 7219.9 | R21: 6259.4 | S21: 4767.65 | U21: 0 | V21: 0 | W21: 0 | X21: 0 | Y21: 0
A22: 34 | B22: 30 | C22: 10051.25 | D22: 8810.25 | E22: 7219.9 | F22: 6259.4 | G22: 4767.65 | I22: 11825 | J22: 10365 | K22: 8494 | L22: 7364 | M22: 5609 | O22: 10051.25 | P22: 8810.25 | Q22: 7219.9 | R22: 6259.4 | S22: 4767.65 | U22: 0 | V22: 0 | W22: 0 | X22: 0 | Y22: 0
A23: 35 | B23: 35 | C23: 11220 | D23: 9831.95 | E23: 8011.25 | F23: 6947.9 | G23: 5292.1 | I23: 13200 | J23: 11567 | K23: 9425 | L23: 8174 | M23: 6226 | O23: 11220 | P23: 9831.95 | Q23: 8011.25 | R23: 6947.9 | S23: 5292.1 | U23: 0 | V23: 0 | W23: 0 | X23: 0 | Y23: 0
A24: 36 | B24: 35 | C24: 11220 | D24: 9831.95 | E24: 8011.25 | F24: 6947.9 | G24: 5292.1 | I24: 13200 | J24: 11567 | K24: 9425 | L24: 8174 | M24: 6226 | O24: 11220 | P24: 9831.95 | Q24: 8011.25 | R24: 6947.9 | S24: 5292.1 | U24: 0 | V24: 0 | W24: 0 | X24: 0 | Y24: 0
A25: 37 | B25: 35 | C25: 11220 | D25: 9831.95 | E25: 8011.25 | F25: 6947.9 | G25: 5292.1 | I25: 13200 | J25: 11567 | K25: 9425 | L25: 8174 | M25: 6226 | O25: 11220 | P25: 9831.95 | Q25: 8011.25 | R25: 6947.9 | S25: 5292.1 | U25: 0 | V25: 0 | W25: 0 | X25: 0 | Y25: 0
A26: 38 | B26: 35 | C26: 11220 | D26: 9831.95 | E26: 8011.25 | F26: 6947.9 | G26: 5292.1 | I26: 13200 | J26: 11567 | K26: 9425 | L26: 8174 | M26: 6226 | O26: 11220 | P26: 9831.95 | Q26: 8011.25 | R26: 6947.9 | S26: 5292.1 | U26: 0 | V26: 0 | W26: 0 | X26: 0 | Y26: 0
A27: 39 | B27: 35 | C27: 11220 | D27: 9831.95 | E27: 8011.25 | F27: 6947.9 | G27: 5292.1 | I27: 13200 | J27: 11567 | K27: 9425 | L27: 8174 | M27: 6226 | O27: 11220 | P27: 9831.95 | Q27: 8011.25 | R27: 6947.9 | S27: 5292.1 | U27: 0 | V27: 0 | W27: 0 | X27: 0 | Y27: 0
A28: 40 | B28: 40 | C28: 12985.45 | D28: 11380.65 | E28: 9231 | F28: 8004.45 | G28: 6098.75 | I28: 15277 | J28: 13389 | K28: 10860 | L28: 9417 | M28: 7175 | O28: 12985.45 | P28: 11380.65 | Q28: 9231 | R28: 8004.45 | S28: 6098.75 | U28: 0 | V28: 0 | W28: 0 | X28: 0 | Y28: 0
A29: 41 | B29: 40 | C29: 12985.45 | D29: 11380.65 | E29: 9231 | F29: 8004.45 | G29: 6098.75 | I29: 15277 | J29: 13389 | K29: 10860 | L29: 9417 | M29: 7175 | O29: 12985.45 | P29: 11380.65 | Q29: 9231 | R29: 8004.45 | S29: 6098.75 | U29: 0 | V29: 0 | W29: 0 | X29: 0 | Y29: 0
A30: 42 | B30: 40 | C30: 12985.45 | D30: 11380.65 | E30: 9231 | F30: 8004.45 | G30: 6098.75 | I30: 15277 | J30: 13389 | K30: 10860 | L30: 9417 | M30: 7175 | O30: 12985.45 | P30: 11380.65 | Q30: 9231 | R30: 8004.45 | S30: 6098.75 | U30: 0 | V30: 0 | W30: 0 | X30: 0 | Y30: 0
A31: 43 | B31: 40 | C31: 12985.45 | D31: 11380.65 | E31: 9231 | F31: 8004.45 | G31: 6098.75 | I31: 15277 | J31: 13389 | K31: 10860 | L31: 9417 | M31: 7175 | O31: 12985.45 | P31: 11380.65 | Q31: 9231 | R31: 8004.45 | S31: 6098.75 | U31: 0 | V31: 0 | W31: 0 | X31: 0 | Y31: 0
A32: 44 | B32: 40 | C32: 12985.45 | D32: 11380.65 | E32: 9231 | F32: 8004.45 | G32: 6098.75 | I32: 15277 | J32: 13389 | K32: 10860 | L32: 9417 | M32: 7175 | O32: 12985.45 | P32: 11380.65 | Q32: 9231 | R32: 8004.45 | S32: 6098.75 | U32: 0 | V32: 0 | W32: 0 | X32: 0 | Y32: 0
A33: 45 | B33: 45 | C33: 14533.3 | D33: 12737.25 | E33: 10299.45 | F33: 8930.1 | G33: 6801.7 | I33: 17098 | J33: 14985 | K33: 12117 | L33: 10506 | M33: 8002 | O33: 14533.3 | P33: 12737.25 | Q33: 10299.45 | R33: 8930.1 | S33: 6801.7 | U33: 0 | V33: 0 | W33: 0 | X33: 0 | Y33: 0
A34: 46 | B34: 45 | C34: 14533.3 | D34: 12737.25 | E34: 10299.45 | F34: 8930.1 | G34: 6801.7 | I34: 17098 | J34: 14985 | K34: 12117 | L34: 10506 | M34: 8002 | O34: 14533.3 | P34: 12737.25 | Q34: 10299.45 | R34: 8930.1 | S34: 6801.7 | U34: 0 | V34: 0 | W34: 0 | X34: 0 | Y34: 0
A35: 47 | B35: 45 | C35: 14533.3 | D35: 12737.25 | E35: 10299.45 | F35: 8930.1 | G35: 6801.7 | I35: 17098 | J35: 14985 | K35: 12117 | L35: 10506 | M35: 8002 | O35: 14533.3 | P35: 12737.25 | Q35: 10299.45 | R35: 8930.1 | S35: 6801.7 | U35: 0 | V35: 0 | W35: 0 | X35: 0 | Y35: 0
A36: 48 | B36: 45 | C36: 14533.3 | D36: 12737.25 | E36: 10299.45 | F36: 8930.1 | G36: 6801.7 | I36: 17098 | J36: 14985 | K36: 12117 | L36: 10506 | M36: 8002 | O36: 14533.3 | P36: 12737.25 | Q36: 10299.45 | R36: 8930.1 | S36: 6801.7 | U36: 0 | V36: 0 | W36: 0 | X36: 0 | Y36: 0
A37: 49 | B37: 45 | C37: 14533.3 | D37: 12737.25 | E37: 10299.45 | F37: 8930.1 | G37: 6801.7 | I37: 17098 | J37: 14985 | K37: 12117 | L37: 10506 | M37: 8002 | O37: 14533.3 | P37: 12737.25 | Q37: 10299.45 | R37: 8930.1 | S37: 6801.7 | U37: 0 | V37: 0 | W37: 0 | X37: 0 | Y37: 0
A38: 50 | B38: 50 | C38: 16796 | D38: 14722.85 | E38: 11876.2 | F38: 10299.45 | G38: 7844.65 | I38: 19760 | J38: 17321 | K38: 13972 | L38: 12117 | M38: 9229 | O38: 16796 | P38: 14722.85 | Q38: 11876.2 | R38: 10299.45 | S38: 7844.65 | U38: 0 | V38: 0 | W38: 0 | X38: 0 | Y38: 0
A39: 51 | B39: 50 | C39: 16796 | D39: 14722.85 | E39: 11876.2 | F39: 10299.45 | G39: 7844.65 | I39: 19760 | J39: 17321 | K39: 13972 | L39: 12117 | M39: 9229 | O39: 16796 | P39: 14722.85 | Q39: 11876.2 | R39: 10299.45 | S39: 7844.65 | U39: 0 | V39: 0 | W39: 0 | X39: 0 | Y39: 0
A40: 52 | B40: 50 | C40: 16796 | D40: 14722.85 | E40: 11876.2 | F40: 10299.45 | G40: 7844.65 | I40: 19760 | J40: 17321 | K40: 13972 | L40: 12117 | M40: 9229 | O40: 16796 | P40: 14722.85 | Q40: 11876.2 | R40: 10299.45 | S40: 7844.65 | U40: 0 | V40: 0 | W40: 0 | X40: 0 | Y40: 0
A41: 53 | B41: 50 | C41: 16796 | D41: 14722.85 | E41: 11876.2 | F41: 10299.45 | G41: 7844.65 | I41: 19760 | J41: 17321 | K41: 13972 | L41: 12117 | M41: 9229 | O41: 16796 | P41: 14722.85 | Q41: 11876.2 | R41: 10299.45 | S41: 7844.65 | U41: 0 | V41: 0 | W41: 0 | X41: 0 | Y41: 0
A42: 54 | B42: 50 | C42: 16796 | D42: 14722.85 | E42: 11876.2 | F42: 10299.45 | G42: 7844.65 | I42: 19760 | J42: 17321 | K42: 13972 | L42: 12117 | M42: 9229 | O42: 16796 | P42: 14722.85 | Q42: 11876.2 | R42: 10299.45 | S42: 7844.65 | U42: 0 | V42: 0 | W42: 0 | X42: 0 | Y42: 0
A43: 55 | B43: 55 | C43: 18777.35 | D43: 16459.4 | E43: 13259.15 | F43: 11498.8 | G43: 8758.4 | I43: 22091 | J43: 19364 | K43: 15599 | L43: 13528 | M43: 10304 | O43: 18777.35 | P43: 16459.4 | Q43: 13259.15 | R43: 11498.8 | S43: 8758.4 | U43: 0 | V43: 0 | W43: 0 | X43: 0 | Y43: 0
A44: 56 | B44: 55 | C44: 18777.35 | D44: 16459.4 | E44: 13259.15 | F44: 11498.8 | G44: 8758.4 | I44: 22091 | J44: 19364 | K44: 15599 | L44: 13528 | M44: 10304 | O44: 18777.35 | P44: 16459.4 | Q44: 13259.15 | R44: 11498.8 | S44: 8758.4 | U44: 0 | V44: 0 | W44: 0 | X44: 0 | Y44: 0
A45: 57 | B45: 55 | C45: 18777.35 | D45: 16459.4 | E45: 13259.15 | F45: 11498.8 | G45: 8758.4 | I45: 22091 | J45: 19364 | K45: 15599 | L45: 13528 | M45: 10304 | O45: 18777.35 | P45: 16459.4 | Q45: 13259.15 | R45: 11498.8 | S45: 8758.4 | U45: 0 | V45: 0 | W45: 0 | X45: 0 | Y45: 0
A46: 58 | B46: 55 | C46: 18777.35 | D46: 16459.4 | E46: 13259.15 | F46: 11498.8 | G46: 8758.4 | I46: 22091 | J46: 19364 | K46: 15599 | L46: 13528 | M46: 10304 | O46: 18777.35 | P46: 16459.4 | Q46: 13259.15 | R46: 11498.8 | S46: 8758.4 | U46: 0 | V46: 0 | W46: 0 | X46: 0 | Y46: 0
A47: 59 | B47: 55 | C47: 18777.35 | D47: 16459.4 | E47: 13259.15 | F47: 11498.8 | G47: 8758.4 | I47: 22091 | J47: 19364 | K47: 15599 | L47: 13528 | M47: 10304 | O47: 18777.35 | P47: 16459.4 | Q47: 13259.15 | R47: 11498.8 | S47: 8758.4 | U47: 0 | V47: 0 | W47: 0 | X47: 0 | Y47: 0
A48: 60 | B48: 60 | C48: 20096.55 | D48: 17616.25 | E48: 14178.85 | F48: 12294.4 | G48: 9364.45 | I48: 23643 | J48: 20725 | K48: 16681 | L48: 14464 | M48: 11017 | O48: 20096.55 | P48: 17616.25 | Q48: 14178.85 | R48: 12294.4 | S48: 9364.45 | U48: 0 | V48: 0 | W48: 0 | X48: 0 | Y48: 0
A49: 61 | B49: 61 | C49: 22743.45 | D49: 19936.75 | E49: 16039.5 | F49: 13910.25 | G49: 10594.4 | I49: 26757 | J49: 23455 | K49: 18870 | L49: 16365 | M49: 12464 | O49: 22743.45 | P49: 19936.75 | Q49: 16039.5 | R49: 13910.25 | S49: 10594.4 | U49: 0 | V49: 0 | W49: 0 | X49: 0 | Y49: 0
A50: 62 | B50: 62 | C50: 25268.8 | D50: 22147.6 | E50: 17815.15 | F50: 15446.2 | G50: 11764 | I50: 29728 | J50: 26056 | K50: 20959 | L50: 18172 | M50: 13840 | O50: 25268.8 | P50: 22147.6 | Q50: 17815.15 | R50: 15446.2 | S50: 11764 | U50: 0 | V50: 0 | W50: 0 | X50: 0 | Y50: 0
A51: 63 | B51: 63 | C51: 27978.6 | D51: 24526.75 | E51: 19727.65 | F51: 17105.4 | G51: 13029.65 | I51: 32916 | J51: 28855 | K51: 23209 | L51: 20124 | M51: 15329 | O51: 27978.6 | P51: 24526.75 | Q51: 19727.65 | R51: 17105.4 | S51: 13029.65 | U51: 0 | V51: 0 | W51: 0 | X51: 0 | Y51: 0
A52: 64 | B52: 64 | C52: 30884.75 | D52: 27069.95 | E52: 21777.85 | F52: 18883.6 | G52: 14382.85 | I52: 36335 | J52: 31847 | K52: 25621 | L52: 22216 | M52: 16921 | O52: 30884.75 | P52: 27069.95 | Q52: 21777.85 | R52: 18883.6 | S52: 14382.85 | U52: 0 | V52: 0 | W52: 0 | X52: 0 | Y52: 0
A53: 65 | B53: 65 | C53: 33977.9 | D53: 29784.85 | E53: 23967.45 | F53: 20784.2 | G53: 15832.1 | I53: 39974 | J53: 35041 | K53: 28197 | L53: 24452 | M53: 18626 | O53: 33977.9 | P53: 29784.85 | Q53: 23967.45 | R53: 20784.2 | S53: 15832.1 | U53: 0 | V53: 0 | W53: 0 | X53: 0 | Y53: 0
A54: 66 | B54: 66 | C54: 37264 | D54: 32663.8 | E54: 26296.45 | F54: 22802.1 | G54: 17369.75 | I54: 43840 | J54: 38428 | K54: 30937 | L54: 26826 | M54: 20435 | O54: 37264 | P54: 32663.8 | Q54: 26296.45 | R54: 22802.1 | S54: 17369.75 | U54: 0 | V54: 0 | W54: 0 | X54: 0 | Y54: 0
A55: 67 | B55: 67 | C55: 40739.65 | D55: 35708.5 | E55: 28765.7 | F55: 24942.4 | G55: 18998.35 | I55: 47929 | J55: 42010 | K55: 33842 | L55: 29344 | M55: 22351 | O55: 40739.65 | P55: 35708.5 | Q55: 28765.7 | R55: 24942.4 | S55: 18998.35 | U55: 0 | V55: 0 | W55: 0 | X55: 0 | Y55: 0
A56: 68 | B56: 68 | C56: 44404 | D56: 38921.5 | E56: 31370.95 | F56: 27203.4 | G56: 20721.3 | I56: 52240 | J56: 45790 | K56: 36907 | L56: 32004 | M56: 24378 | O56: 44404 | P56: 38921.5 | Q56: 31370.95 | R56: 27203.4 | S56: 20721.3 | U56: 0 | V56: 0 | W56: 0 | X56: 0 | Y56: 0
A57: 69 | B57: 69 | C57: 48262.15 | D57: 42301.95 | E57: 34118.15 | F57: 29585.95 | G57: 22534.35 | I57: 56779 | J57: 49767 | K57: 40139 | L57: 34807 | M57: 26511 | O57: 48262.15 | P57: 42301.95 | Q57: 34118.15 | R57: 29585.95 | S57: 22534.35 | U57: 0 | V57: 0 | W57: 0 | X57: 0 | Y57: 0
A58: 70 | B58: 70 | C58: 52308.15 | D58: 45849 | E58: 37000.5 | F58: 32084.95 | G58: 24438.35 | I58: 61539 | J58: 53940 | K58: 43530 | L58: 37747 | M58: 28751 | O58: 52308.15 | P58: 45849 | Q58: 37000.5 | R58: 32084.95 | S58: 24438.35 | U58: 0 | V58: 0 | W58: 0 | X58: 0 | Y58: 0
A59: 71 | B59: 71 | C59: 56544.55 | D59: 49562.65 | E59: 40024.8 | F59: 34707.2 | G59: 26435 | I59: 66523 | J59: 58309 | K59: 47088 | L59: 40832 | M59: 31100 | O59: 56544.55 | P59: 49562.65 | Q59: 40024.8 | R59: 34707.2 | S59: 26435 | U59: 0 | V59: 0 | W59: 0 | X59: 0 | Y59: 0
A60: 72 | B60: 72 | C60: 60972.2 | D60: 53446.3 | E60: 43185.95 | F60: 37445.9 | G60: 28522.6 | I60: 71732 | J60: 62878 | K60: 50807 | L60: 44054 | M60: 33556 | O60: 60972.2 | P60: 53446.3 | Q60: 43185.95 | R60: 37445.9 | S60: 28522.6 | U60: 0 | V60: 0 | W60: 0 | X60: 0 | Y60: 0
A61: 73 | B61: 73 | C61: 65591.1 | D61: 57492.3 | E61: 46489.05 | F61: 40309.55 | G61: 30702.85 | I61: 77166 | J61: 67638 | K61: 54693 | L61: 47423 | M61: 36121 | O61: 65591.1 | P61: 57492.3 | Q61: 46489.05 | R61: 40309.55 | S61: 30702.85 | U61: 0 | V61: 0 | W61: 0 | X61: 0 | Y61: 0
A62: 74 | B62: 74 | C62: 70401.25 | D62: 61705.75 | E62: 49926.45 | F62: 43292.2 | G62: 32974.9 | I62: 82825 | J62: 72595 | K62: 58737 | L62: 50932 | M62: 38794 | O62: 70401.25 | P62: 61705.75 | Q62: 49926.45 | R62: 43292.2 | S62: 32974.9 | U62: 0 | V62: 0 | W62: 0 | X62: 0 | Y62: 0
A63: 75 | B63: 75 | C63: 75399.25 | D63: 66088.35 | E63: 53503.25 | F63: 46393.85 | G63: 35337.05 | I63: 88705 | J63: 77751 | K63: 62945 | L63: 54581 | M63: 41573 | O63: 75399.25 | P63: 66088.35 | Q63: 53503.25 | R63: 46393.85 | S63: 35337.05 | U63: 0 | V63: 0 | W63: 0 | X63: 0 | Y63: 0
A64: 76 | B64: 75 | C64: 75399.25 | D64: 66088.35 | E64: 53503.25 | F64: 46393.85 | G64: 35337.05 | I64: 88705 | J64: 77751 | K64: 62945 | L64: 54581 | M64: 41573 | O64: 75399.25 | P64: 66088.35 | Q64: 53503.25 | R64: 46393.85 | S64: 35337.05 | U64: 0 | V64: 0 | W64: 0 | X64: 0 | Y64: 0
A65: 77 | B65: 75 | C65: 75399.25 | D65: 66088.35 | E65: 53503.25 | F65: 46393.85 | G65: 35337.05 | I65: 88705 | J65: 77751 | K65: 62945 | L65: 54581 | M65: 41573 | O65: 75399.25 | P65: 66088.35 | Q65: 53503.25 | R65: 46393.85 | S65: 35337.05 | U65: 0 | V65: 0 | W65: 0 | X65: 0 | Y65: 0
A66: 78 | B66: 75 | C66: 75399.25 | D66: 66088.35 | E66: 53503.25 | F66: 46393.85 | G66: 35337.05 | I66: 88705 | J66: 77751 | K66: 62945 | L66: 54581 | M66: 41573 | O66: 75399.25 | P66: 66088.35 | Q66: 53503.25 | R66: 46393.85 | S66: 35337.05 | U66: 0 | V66: 0 | W66: 0 | X66: 0 | Y66: 0
A67: 79 | B67: 75 | C67: 75399.25 | D67: 66088.35 | E67: 53503.25 | F67: 46393.85 | G67: 35337.05 | I67: 88705 | J67: 77751 | K67: 62945 | L67: 54581 | M67: 41573 | O67: 75399.25 | P67: 66088.35 | Q67: 53503.25 | R67: 46393.85 | S67: 35337.05 | U67: 0 | V67: 0 | W67: 0 | X67: 0 | Y67: 0
A68: 80 | B68: 75 | C68: 75399.25 | D68: 66088.35 | E68: 53503.25 | F68: 46393.85 | G68: 35337.05 | I68: 88705 | J68: 77751 | K68: 62945 | L68: 54581 | M68: 41573 | O68: 75399.25 | P68: 66088.35 | Q68: 53503.25 | R68: 46393.85 | S68: 35337.05 | U68: 0 | V68: 0 | W68: 0 | X68: 0 | Y68: 0
A69: 81 | B69: 75 | C69: 75399.25 | D69: 66088.35 | E69: 53503.25 | F69: 46393.85 | G69: 35337.05 | I69: 88705 | J69: 77751 | K69: 62945 | L69: 54581 | M69: 41573 | O69: 75399.25 | P69: 66088.35 | Q69: 53503.25 | R69: 46393.85 | S69: 35337.05 | U69: 0 | V69: 0 | W69: 0 | X69: 0 | Y69: 0
A70: 82 | B70: 75 | C70: 75399.25 | D70: 66088.35 | E70: 53503.25 | F70: 46393.85 | G70: 35337.05 | I70: 88705 | J70: 77751 | K70: 62945 | L70: 54581 | M70: 41573 | O70: 75399.25 | P70: 66088.35 | Q70: 53503.25 | R70: 46393.85 | S70: 35337.05 | U70: 0 | V70: 0 | W70: 0 | X70: 0 | Y70: 0
A71: 83 | B71: 75 | C71: =O71 -> 75399.25 | D71: =P71 -> 66088.35 | E71: =Q71 -> 53503.25 | F71: =R71 -> 46393.85 | G71: =S71 -> 35337.05 | I71: 88705 | J71: 77751 | K71: 62945 | L71: 54581 | M71: 41573 | O71: =(I71)*0.85 -> 75399.25 | P71: =(J71)*0.85 -> 66088.35 | Q71: =(K71)*0.85 -> 53503.25 | R71: =(L71)*0.85 -> 46393.85 | S71: =(M71)*0.85 -> 35337.05 | U71: 0 | V71: 0 | W71: 0 | X71: 0 | Y71: 0
A72: 84 | B72: 75 | C72: 75399.25 | D72: 66088.35 | E72: 53503.25 | F72: 46393.85 | G72: 35337.05 | I72: 88705 | J72: 77751 | K72: 62945 | L72: 54581 | M72: 41573 | O72: 75399.25 | P72: 66088.35 | Q72: 53503.25 | R72: 46393.85 | S72: 35337.05 | U72: 0 | V72: 0 | W72: 0 | X72: 0 | Y72: 0
A73: 1 | B73: 1 Child | C73: 3576.8 | D73: 3134.8 | E73: 2621.4 | F73: 2273.75 | G73: 1732.3 | I73: 4208 | J73: 3688 | K73: 3084 | L73: 2675 | M73: 2038 | O73: 3576.8 | P73: =J73*0.85 -> 3134.8 | Q73: =K73*0.85 -> 2621.4 | R73: =L73*0.85 -> 2273.75 | S73: =M73*0.85 -> 1732.3 | U73: 0 | V73: 0 | W73: 0 | X73: 0 | Y73: 0
A74: 2 | B74: 2 Children | C74: 6076.65 | D74: 5327.8 | E74: 4455.7 | F74: 3864.95 | G74: 2944.4 | I74: 7149 | J74: 6268 | K74: 5242 | L74: 4547 | M74: 3464 | O74: 6076.65 | P74: =J74*0.85 -> 5327.8 | Q74: =K74*0.85 -> 4455.7 | R74: =L74*0.85 -> 3864.95 | S74: =M74*0.85 -> 2944.4 | U74: 0 | V74: 0 | W74: 0 | X74: 0 | Y74: 0
A75: 3 | B75: 3+ Children | C75: 8579.9 | D75: 7519.95 | E75: 6290 | F75: 5454.45 | G75: 4155.65 | I75: 10094 | J75: 8847 | K75: 7400 | L75: 6417 | M75: 4889 | O75: 8579.9 | P75: 7519.95 | Q75: 6290 | R75: 5454.45 | S75: 4155.65 | U75: 0 | V75: 0 | W75: 0 | X75: 0 | Y75: 0
A77: BUPA GLOBAL ELITE - MENSUALES
A78: EDAD
C79: 1000 | D79: 2000 | E79: 3500
A80: 18 | C80: =C6*$K$2 -> 789.6046667 | D80: =D6*$K$2 -> 691.9453333 | E80: 574.77 | F80: 498.6893333 | G80: 379.7686667 | I80: =I6*$K$2 -> 928.9466667 | J80: =J6*$K$2 -> 814.0533333 | K80: 676.2 | L80: 586.6933333 | M80: 446.7866667 | O80: =I80*0.85 -> 789.6046667 | P80: =J80*0.85 -> 691.9453333 | Q80: 574.77 | R80: 498.6893333 | S80: 379.7686667
A81: 19 | C81: =C7*$K$2 -> 789.6046667 | D81: 691.9453333 | E81: 574.77 | F81: 498.6893333 | G81: 379.7686667 | I81: =I7*$K$2 -> 928.9466667 | J81: 814.0533333 | K81: 676.2 | L81: 586.6933333 | M81: 446.7866667 | O81: =I81*0.85 -> 789.6046667 | P81: =J81*0.85 -> 691.9453333 | Q81: =K81*0.85 -> 574.77 | R81: =L81*0.85 -> 498.6893333 | S81: =M81*0.85 -> 379.7686667
A82: 20 | C82: =C8*$K$2 -> 789.6046667 | D82: 691.9453333 | E82: 574.77 | F82: 498.6893333 | G82: 379.7686667 | I82: 928.9466667 | J82: 814.0533333 | K82: 676.2 | L82: 586.6933333 | M82: 446.7866667 | O82: 789.6046667 | P82: 691.9453333 | Q82: 574.77 | R82: 498.6893333 | S82: 379.7686667
A83: 21 | C83: =C9*$K$2 -> 789.6046667 | D83: 691.9453333 | E83: 574.77 | F83: 498.6893333 | G83: 379.7686667 | I83: 928.9466667 | J83: 814.0533333 | K83: 676.2 | L83: 586.6933333 | M83: 446.7866667 | O83: 789.6046667 | P83: 691.9453333 | Q83: 574.77 | R83: 498.6893333 | S83: 379.7686667
A84: 22 | C84: =C10*$K$2 -> 789.6046667 | D84: 691.9453333 | E84: 574.77 | F84: 498.6893333 | G84: 379.7686667 | I84: 928.9466667 | J84: 814.0533333 | K84: 676.2 | L84: 586.6933333 | M84: 446.7866667 | O84: 789.6046667 | P84: 691.9453333 | Q84: 574.77 | R84: 498.6893333 | S84: 379.7686667
A85: 23 | C85: =C11*$K$2 -> 789.6046667 | D85: 691.9453333 | E85: 574.77 | F85: 498.6893333 | G85: 379.7686667 | I85: 928.9466667 | J85: 814.0533333 | K85: 676.2 | L85: 586.6933333 | M85: 446.7866667 | O85: 789.6046667 | P85: 691.9453333 | Q85: 574.77 | R85: 498.6893333 | S85: 379.7686667
A86: 24 | C86: =C12*$K$2 -> 789.6046667 | D86: 691.9453333 | E86: 574.77 | F86: 498.6893333 | G86: 379.7686667 | I86: 928.9466667 | J86: 814.0533333 | K86: 676.2 | L86: 586.6933333 | M86: 446.7866667 | O86: 789.6046667 | P86: 691.9453333 | Q86: 574.77 | R86: 498.6893333 | S86: 379.7686667
A87: 25 | C87: =C13*$K$2 -> 843.6306667 | D87: 739.3866667 | E87: 610.47 | F87: 529.312 | G87: 403.41 | I87: 992.5066667 | J87: 869.8666667 | K87: 718.2 | L87: 622.72 | M87: 474.6 | O87: 843.6306667 | P87: 739.3866667 | Q87: 610.47 | R87: 529.312 | S87: 403.41
A88: 26 | C88: =C14*$K$2 -> 843.6306667 | D88: 739.3866667 | E88: 610.47 | F88: 529.312 | G88: 403.41 | I88: 992.5066667 | J88: 869.8666667 | K88: 718.2 | L88: 622.72 | M88: 474.6 | O88: 843.6306667 | P88: 739.3866667 | Q88: 610.47 | R88: 529.312 | S88: 403.41
A89: 27 | C89: =C15*$K$2 -> 843.6306667 | D89: 739.3866667 | E89: 610.47 | F89: 529.312 | G89: 403.41 | I89: 992.5066667 | J89: 869.8666667 | K89: 718.2 | L89: 622.72 | M89: 474.6 | O89: 843.6306667 | P89: 739.3866667 | Q89: 610.47 | R89: 529.312 | S89: 403.41
A90: 28 | C90: =C16*$K$2 -> 843.6306667 | D90: 739.3866667 | E90: 610.47 | F90: 529.312 | G90: 403.41 | I90: 992.5066667 | J90: 869.8666667 | K90: 718.2 | L90: 622.72 | M90: 474.6 | O90: 843.6306667 | P90: 739.3866667 | Q90: 610.47 | R90: 529.312 | S90: 403.41
A91: 29 | C91: =C17*$K$2 -> 843.6306667 | D91: 739.3866667 | E91: 610.47 | F91: 529.312 | G91: 403.41 | I91: 992.5066667 | J91: 869.8666667 | K91: 718.2 | L91: 622.72 | M91: 474.6 | O91: 843.6306667 | P91: 739.3866667 | Q91: 610.47 | R91: 529.312 | S91: 403.41
A92: 30 | C92: =C18*$K$2 -> 938.1166667 | D92: 822.29 | E92: 673.8573333 | F92: 584.2106667 | G92: 444.9806667 | I92: 1103.666667 | J92: 967.4 | K92: 792.7733333 | L92: 687.3066667 | M92: 523.5066667 | O92: 938.1166667 | P92: 822.29 | Q92: 673.8573333 | R92: 584.2106667 | S92: 444.9806667
A93: 31 | C93: =C19*$K$2 -> 938.1166667 | D93: 822.29 | E93: 673.8573333 | F93: 584.2106667 | G93: 444.9806667 | I93: 1103.666667 | J93: 967.4 | K93: 792.7733333 | L93: 687.3066667 | M93: 523.5066667 | O93: 938.1166667 | P93: 822.29 | Q93: 673.8573333 | R93: 584.2106667 | S93: 444.9806667
A94: 32 | C94: =C20*$K$2 -> 938.1166667 | D94: 822.29 | E94: 673.8573333 | F94: 584.2106667 | G94: 444.9806667 | I94: 1103.666667 | J94: 967.4 | K94: 792.7733333 | L94: 687.3066667 | M94: 523.5066667 | O94: 938.1166667 | P94: 822.29 | Q94: 673.8573333 | R94: 584.2106667 | S94: 444.9806667
A95: 33 | C95: =C21*$K$2 -> 938.1166667 | D95: 822.29 | E95: 673.8573333 | F95: 584.2106667 | G95: 444.9806667 | I95: 1103.666667 | J95: 967.4 | K95: 792.7733333 | L95: 687.3066667 | M95: 523.5066667 | O95: 938.1166667 | P95: 822.29 | Q95: 673.8573333 | R95: 584.2106667 | S95: 444.9806667
A96: 34 | C96: =C22*$K$2 -> 938.1166667 | D96: 822.29 | E96: 673.8573333 | F96: 584.2106667 | G96: 444.9806667 | I96: 1103.666667 | J96: 967.4 | K96: 792.7733333 | L96: 687.3066667 | M96: 523.5066667 | O96: 938.1166667 | P96: 822.29 | Q96: 673.8573333 | R96: 584.2106667 | S96: 444.9806667
A97: 35 | C97: =C23*$K$2 -> 1047.2 | D97: 917.6486667 | E97: 747.7166667 | F97: 648.4706667 | G97: 493.9293333 | I97: 1232 | J97: 1079.586667 | K97: 879.6666667 | L97: 762.9066667 | M97: 581.0933333 | O97: 1047.2 | P97: 917.6486667 | Q97: 747.7166667 | R97: 648.4706667 | S97: 493.9293333
A98: 36 | C98: =C24*$K$2 -> 1047.2 | D98: 917.6486667 | E98: 747.7166667 | F98: 648.4706667 | G98: 493.9293333 | I98: 1232 | J98: 1079.586667 | K98: 879.6666667 | L98: 762.9066667 | M98: 581.0933333 | O98: 1047.2 | P98: 917.6486667 | Q98: 747.7166667 | R98: 648.4706667 | S98: 493.9293333
A99: 37 | C99: =C25*$K$2 -> 1047.2 | D99: 917.6486667 | E99: 747.7166667 | F99: 648.4706667 | G99: 493.9293333 | I99: 1232 | J99: 1079.586667 | K99: 879.6666667 | L99: 762.9066667 | M99: 581.0933333 | O99: 1047.2 | P99: 917.6486667 | Q99: 747.7166667 | R99: 648.4706667 | S99: 493.9293333
A100: 38 | C100: =C26*$K$2 -> 1047.2 | D100: 917.6486667 | E100: 747.7166667 | F100: 648.4706667 | G100: 493.9293333 | I100: 1232 | J100: 1079.586667 | K100: 879.6666667 | L100: 762.9066667 | M100: 581.0933333 | O100: 1047.2 | P100: 917.6486667 | Q100: 747.7166667 | R100: 648.4706667 | S100: 493.9293333
A101: 39 | C101: =C27*$K$2 -> 1047.2 | D101: 917.6486667 | E101: 747.7166667 | F101: 648.4706667 | G101: 493.9293333 | I101: 1232 | J101: 1079.586667 | K101: 879.6666667 | L101: 762.9066667 | M101: 581.0933333 | O101: 1047.2 | P101: 917.6486667 | Q101: 747.7166667 | R101: 648.4706667 | S101: 493.9293333
A102: 40 | C102: =C28*$K$2 -> 1211.975333 | D102: 1062.194 | E102: 861.56 | F102: 747.082 | G102: 569.2166667 | I102: 1425.853333 | J102: 1249.64 | K102: 1013.6 | L102: 878.92 | M102: 669.6666667 | O102: 1211.975333 | P102: 1062.194 | Q102: 861.56 | R102: 747.082 | S102: 569.2166667
A103: 41 | C103: =C29*$K$2 -> 1211.975333 | D103: 1062.194 | E103: 861.56 | F103: 747.082 | G103: 569.2166667 | I103: 1425.853333 | J103: 1249.64 | K103: 1013.6 | L103: 878.92 | M103: 669.6666667 | O103: 1211.975333 | P103: 1062.194 | Q103: 861.56 | R103: 747.082 | S103: 569.2166667
A104: 42 | C104: =C30*$K$2 -> 1211.975333 | D104: 1062.194 | E104: 861.56 | F104: 747.082 | G104: 569.2166667 | I104: 1425.853333 | J104: 1249.64 | K104: 1013.6 | L104: 878.92 | M104: 669.6666667 | O104: 1211.975333 | P104: 1062.194 | Q104: 861.56 | R104: 747.082 | S104: 569.2166667
A105: 43 | C105: =C31*$K$2 -> 1211.975333 | D105: 1062.194 | E105: 861.56 | F105: 747.082 | G105: 569.2166667 | I105: 1425.853333 | J105: 1249.64 | K105: 1013.6 | L105: 878.92 | M105: 669.6666667 | O105: 1211.975333 | P105: 1062.194 | Q105: 861.56 | R105: 747.082 | S105: 569.2166667
A106: 44 | C106: =C32*$K$2 -> 1211.975333 | D106: 1062.194 | E106: 861.56 | F106: 747.082 | G106: 569.2166667 | I106: 1425.853333 | J106: 1249.64 | K106: 1013.6 | L106: 878.92 | M106: 669.6666667 | O106: 1211.975333 | P106: 1062.194 | Q106: 861.56 | R106: 747.082 | S106: 569.2166667
A107: 45 | C107: =C33*$K$2 -> 1356.441333 | D107: 1188.81 | E107: 961.282 | F107: 833.476 | G107: 634.8253333 | I107: 1595.813333 | J107: 1398.6 | K107: 1130.92 | L107: 980.56 | M107: 746.8533333 | O107: 1356.441333 | P107: 1188.81 | Q107: 961.282 | R107: 833.476 | S107: 634.8253333
A108: 46 | C108: =C34*$K$2 -> 1356.441333 | D108: 1188.81 | E108: 961.282 | F108: 833.476 | G108: 634.8253333 | I108: 1595.813333 | J108: 1398.6 | K108: 1130.92 | L108: 980.56 | M108: 746.8533333 | O108: 1356.441333 | P108: 1188.81 | Q108: 961.282 | R108: 833.476 | S108: 634.8253333
A109: 47 | C109: =C35*$K$2 -> 1356.441333 | D109: 1188.81 | E109: 961.282 | F109: 833.476 | G109: 634.8253333 | I109: 1595.813333 | J109: 1398.6 | K109: 1130.92 | L109: 980.56 | M109: 746.8533333 | O109: 1356.441333 | P109: 1188.81 | Q109: 961.282 | R109: 833.476 | S109: 634.8253333
A110: 48 | C110: =C36*$K$2 -> 1356.441333 | D110: 1188.81 | E110: 961.282 | F110: 833.476 | G110: 634.8253333 | I110: 1595.813333 | J110: 1398.6 | K110: 1130.92 | L110: 980.56 | M110: 746.8533333 | O110: 1356.441333 | P110: 1188.81 | Q110: 961.282 | R110: 833.476 | S110: 634.8253333
A111: 49 | C111: =C37*$K$2 -> 1356.441333 | D111: 1188.81 | E111: 961.282 | F111: 833.476 | G111: 634.8253333 | I111: 1595.813333 | J111: 1398.6 | K111: 1130.92 | L111: 980.56 | M111: 746.8533333 | O111: 1356.441333 | P111: 1188.81 | Q111: 961.282 | R111: 833.476 | S111: 634.8253333
A112: 50 | C112: =C38*$K$2 -> 1567.626667 | D112: 1374.132667 | E112: 1108.445333 | F112: 961.282 | G112: 732.1673333 | I112: 1844.266667 | J112: 1616.626667 | K112: 1304.053333 | L112: 1130.92 | M112: 861.3733333 | O112: 1567.626667 | P112: 1374.132667 | Q112: 1108.445333 | R112: 961.282 | S112: 732.1673333
A113: 51 | C113: =C39*$K$2 -> 1567.626667 | D113: 1374.132667 | E113: 1108.445333 | F113: 961.282 | G113: 732.1673333 | I113: 1844.266667 | J113: 1616.626667 | K113: 1304.053333 | L113: 1130.92 | M113: 861.3733333 | O113: 1567.626667 | P113: 1374.132667 | Q113: 1108.445333 | R113: 961.282 | S113: 732.1673333
A114: 52 | C114: =C40*$K$2 -> 1567.626667 | D114: 1374.132667 | E114: 1108.445333 | F114: 961.282 | G114: 732.1673333 | I114: 1844.266667 | J114: 1616.626667 | K114: 1304.053333 | L114: 1130.92 | M114: 861.3733333 | O114: 1567.626667 | P114: 1374.132667 | Q114: 1108.445333 | R114: 961.282 | S114: 732.1673333
A115: 53 | C115: =C41*$K$2 -> 1567.626667 | D115: 1374.132667 | E115: 1108.445333 | F115: 961.282 | G115: 732.1673333 | I115: 1844.266667 | J115: 1616.626667 | K115: 1304.053333 | L115: 1130.92 | M115: 861.3733333 | O115: 1567.626667 | P115: 1374.132667 | Q115: 1108.445333 | R115: 961.282 | S115: 732.1673333
A116: 54 | C116: =C42*$K$2 -> 1567.626667 | D116: 1374.132667 | E116: 1108.445333 | F116: 961.282 | G116: 732.1673333 | I116: 1844.266667 | J116: 1616.626667 | K116: 1304.053333 | L116: 1130.92 | M116: 861.3733333 | O116: 1567.626667 | P116: 1374.132667 | Q116: 1108.445333 | R116: 961.282 | S116: 732.1673333
A117: 55 | C117: =C43*$K$2 -> 1752.552667 | D117: 1536.210667 | E117: 1237.520667 | F117: 1073.221333 | G117: 817.4506667 | I117: 2061.826667 | J117: 1807.306667 | K117: 1455.906667 | L117: 1262.613333 | M117: 961.7066667 | O117: 1752.552667 | P117: 1536.210667 | Q117: 1237.520667 | R117: 1073.221333 | S117: 817.4506667
A118: 56 | C118: =C44*$K$2 -> 1752.552667 | D118: 1536.210667 | E118: 1237.520667 | F118: 1073.221333 | G118: 817.4506667 | I118: 2061.826667 | J118: 1807.306667 | K118: 1455.906667 | L118: 1262.613333 | M118: 961.7066667 | O118: 1752.552667 | P118: 1536.210667 | Q118: 1237.520667 | R118: 1073.221333 | S118: 817.4506667
A119: 57 | C119: =C45*$K$2 -> 1752.552667 | D119: 1536.210667 | E119: 1237.520667 | F119: 1073.221333 | G119: 817.4506667 | I119: 2061.826667 | J119: 1807.306667 | K119: 1455.906667 | L119: 1262.613333 | M119: 961.7066667 | O119: 1752.552667 | P119: 1536.210667 | Q119: 1237.520667 | R119: 1073.221333 | S119: 817.4506667
A120: 58 | C120: =C46*$K$2 -> 1752.552667 | D120: 1536.210667 | E120: 1237.520667 | F120: 1073.221333 | G120: 817.4506667 | I120: 2061.826667 | J120: 1807.306667 | K120: 1455.906667 | L120: 1262.613333 | M120: 961.7066667 | O120: 1752.552667 | P120: 1536.210667 | Q120: 1237.520667 | R120: 1073.221333 | S120: 817.4506667
A121: 59 | C121: =C47*$K$2 -> 1752.552667 | D121: 1536.210667 | E121: 1237.520667 | F121: 1073.221333 | G121: 817.4506667 | I121: 2061.826667 | J121: 1807.306667 | K121: 1455.906667 | L121: 1262.613333 | M121: 961.7066667 | O121: 1752.552667 | P121: 1536.210667 | Q121: 1237.520667 | R121: 1073.221333 | S121: 817.4506667
A122: 60 | C122: =C48*$K$2 -> 1875.678 | D122: 1644.183333 | E122: 1323.359333 | F122: 1147.477333 | G122: 874.0153333 | I122: 2206.68 | J122: 1934.333333 | K122: 1556.893333 | L122: 1349.973333 | M122: 1028.253333 | O122: 1875.678 | P122: 1644.183333 | Q122: 1323.359333 | R122: 1147.477333 | S122: 874.0153333
A123: 61 | C123: =C49*$K$2 -> 2122.722 | D123: 1860.763333 | E123: 1497.02 | F123: 1298.29 | G123: 988.8106667 | I123: 2497.32 | J123: 2189.133333 | K123: 1761.2 | L123: 1527.4 | M123: 1163.306667 | O123: 2122.722 | P123: 1860.763333 | Q123: 1497.02 | R123: 1298.29 | S123: 988.8106667
A124: 62 | C124: =C50*$K$2 -> 2358.421333 | D124: 2067.109333 | E124: 1662.747333 | F124: 1441.645333 | G124: 1097.973333 | I124: 2774.613333 | J124: 2431.893333 | K124: 1956.173333 | L124: 1696.053333 | M124: 1291.733333 | O124: 2358.421333 | P124: 2067.109333 | Q124: 1662.747333 | R124: 1441.645333 | S124: 1097.973333
A125: 63 | C125: =C51*$K$2 -> 2611.336 | D125: 2289.163333 | E125: 1841.247333 | F125: 1596.504 | G125: 1216.100667 | I125: 3072.16 | J125: 2693.133333 | K125: 2166.173333 | L125: 1878.24 | M125: 1430.706667 | O125: 2611.336 | P125: 2289.163333 | Q125: 1841.247333 | R125: 1596.504 | S125: 1216.100667
A126: 64 | C126: =C52*$K$2 -> 2882.576667 | D126: 2526.528667 | E126: 2032.599333 | F126: 1762.469333 | G126: 1342.399333 | I126: 3391.266667 | J126: 2972.386667 | K126: 2391.293333 | L126: 2073.493333 | M126: 1579.293333 | O126: 2882.576667 | P126: 2526.528667 | Q126: 2032.599333 | R126: 1762.469333 | S126: 1342.399333
A127: 65 | C127: =C53*$K$2 -> 3171.270667 | D127: 2779.919333 | E127: 2236.962 | F127: 1939.858667 | G127: 1477.662667 | I127: 3730.906667 | J127: 3270.493333 | K127: 2631.72 | L127: 2282.186667 | M127: 1738.426667 | O127: 3171.270667 | P127: 2779.919333 | Q127: 2236.962 | R127: 1939.858667 | S127: 1477.662667
A128: 66 | C128: =C54*$K$2 -> 3477.973333 | D128: 3048.621333 | E128: 2454.335333 | F128: 2128.196 | G128: 1621.176667 | I128: 4091.733333 | J128: 3586.613333 | K128: 2887.453333 | L128: 2503.76 | M128: =M54*$K$2 -> 1907.266667 | O128: 3477.973333 | P128: 3048.621333 | Q128: 2454.335333 | R128: 2128.196 | S128: 1621.176667
A129: 67 | C129: =C55*$K$2 -> 3802.367333 | D129: 3332.793333 | E129: 2684.798667 | F129: 2327.957333 | G129: 1773.179333 | I129: 4473.373333 | J129: 3920.933333 | K129: 3158.586667 | L129: 2738.773333 | M129: 2086.093333 | O129: 3802.367333 | P129: 3332.793333 | Q129: 2684.798667 | R129: 2327.957333 | S129: 1773.179333
A130: 68 | C130: =C56*$K$2 -> 4144.373333 | D130: 3632.673333 | E130: 2927.955333 | F130: 2538.984 | G130: 1933.988 | I130: 4875.733333 | J130: 4273.733333 | K130: 3444.653333 | L130: 2987.04 | M130: 2275.28 | O130: 4144.373333 | P130: 3632.673333 | Q130: 2927.955333 | R130: 2538.984 | S130: 1933.988
A131: 69 | C131: =C57*$K$2 -> 4504.467333 | D131: 3948.182 | E131: 3184.360667 | F131: 2761.355333 | G131: 2103.206 | I131: 5299.373333 | J131: 4644.92 | K131: 3746.306667 | L131: 3248.653333 | M131: 2474.36 | O131: 4504.467333 | P131: 3948.182 | Q131: 3184.360667 | R131: 2761.355333 | S131: 2103.206
A132: 70 | C132: =C58*$K$2 -> 4882.094 | D132: 4279.24 | E132: 3453.38 | F132: 2994.595333 | G132: 2280.912667 | I132: 5743.64 | J132: 5034.4 | K132: 4062.8 | L132: 3523.053333 | M132: 2683.426667 | O132: 4882.094 | P132: 4279.24 | Q132: 3453.38 | R132: 2994.595333 | S132: 2280.912667
A133: 71 | C133: =C59*$K$2 -> 5277.491333 | D133: 4625.847333 | E133: 3735.648 | F133: 3239.338667 | G133: 2467.266667 | I133: 6208.813333 | J133: 5442.173333 | K133: 4394.88 | L133: 3810.986667 | M133: 2902.666667 | O133: 5277.491333 | P133: 4625.847333 | Q133: 3735.648 | R133: 3239.338667 | S133: 2467.266667
A134: 72 | C134: =C60*$K$2 -> 5690.738667 | D134: 4988.321333 | E134: 4030.688667 | F134: 3494.950667 | G134: 2662.109333 | I134: 6694.986667 | J134: 5868.613333 | K134: 4741.986667 | L134: 4111.706667 | M134: 3131.893333 | O134: 5690.738667 | P134: 4988.321333 | Q134: 4030.688667 | R134: 3494.950667 | S134: 2662.109333
A135: 73 | C135: =C61*$K$2 -> 6121.836 | D135: 5365.948 | E135: 4338.978 | F135: 3762.224667 | G135: 2865.599333 | I135: 7202.16 | J135: 6312.88 | K135: 5104.68 | L135: 4426.146667 | M135: 3371.293333 | O135: 6121.836 | P135: 5365.948 | Q135: 4338.978 | R135: 3762.224667 | S135: 2865.599333
A136: 74 | C136: =C62*$K$2 -> 6570.783333 | D136: 5759.203333 | E136: 4659.802 | F136: 4040.605333 | G136: 3077.657333 | I136: 7730.333333 | J136: 6775.533333 | K136: 5482.12 | L136: 4753.653333 | M136: 3620.773333 | O136: 6570.783333 | P136: 5759.203333 | Q136: 4659.802 | R136: 4040.605333 | S136: 3077.657333
A137: 75 | C137: =C63*$K$2 -> 7037.263333 | D137: 6168.246 | E137: 4993.636667 | F137: 4330.092667 | G137: 3298.124667 | I137: 8279.133333 | J137: 7256.76 | K137: 5874.866667 | L137: 5094.226667 | M137: 3880.146667 | O137: 7037.263333 | P137: 6168.246 | Q137: 4993.636667 | R137: 4330.092667 | S137: 3298.124667
A138: 76 | C138: =C64*$K$2 -> 7037.263333 | D138: 6168.246 | E138: 4993.636667 | F138: 4330.092667 | G138: 3298.124667 | I138: 8279.133333 | J138: 7256.76 | K138: 5874.866667 | L138: 5094.226667 | M138: 3880.146667 | O138: 7037.263333 | P138: 6168.246 | Q138: 4993.636667 | R138: 4330.092667 | S138: 3298.124667
A139: 77 | C139: =C65*$K$2 -> 7037.263333 | D139: 6168.246 | E139: 4993.636667 | F139: 4330.092667 | G139: 3298.124667 | I139: 8279.133333 | J139: 7256.76 | K139: 5874.866667 | L139: 5094.226667 | M139: 3880.146667 | O139: 7037.263333 | P139: 6168.246 | Q139: 4993.636667 | R139: 4330.092667 | S139: 3298.124667
A140: 78 | C140: =C66*$K$2 -> 7037.263333 | D140: 6168.246 | E140: 4993.636667 | F140: 4330.092667 | G140: 3298.124667 | I140: 8279.133333 | J140: 7256.76 | K140: 5874.866667 | L140: 5094.226667 | M140: 3880.146667 | O140: 7037.263333 | P140: 6168.246 | Q140: 4993.636667 | R140: 4330.092667 | S140: 3298.124667
A141: 79 | C141: =C67*$K$2 -> 7037.263333 | D141: 6168.246 | E141: 4993.636667 | F141: 4330.092667 | G141: 3298.124667 | I141: 8279.133333 | J141: 7256.76 | K141: 5874.866667 | L141: 5094.226667 | M141: 3880.146667 | O141: 7037.263333 | P141: 6168.246 | Q141: 4993.636667 | R141: 4330.092667 | S141: 3298.124667
A142: 80 | C142: =C68*$K$2 -> 7037.263333 | D142: 6168.246 | E142: 4993.636667 | F142: 4330.092667 | G142: 3298.124667 | I142: 8279.133333 | J142: 7256.76 | K142: 5874.866667 | L142: 5094.226667 | M142: 3880.146667 | O142: 7037.263333 | P142: 6168.246 | Q142: 4993.636667 | R142: 4330.092667 | S142: 3298.124667
A143: 81 | C143: =C69*$K$2 -> 7037.263333 | D143: 6168.246 | E143: 4993.636667 | F143: 4330.092667 | G143: 3298.124667 | I143: 8279.133333 | J143: 7256.76 | K143: 5874.866667 | L143: 5094.226667 | M143: 3880.146667 | O143: 7037.263333 | P143: 6168.246 | Q143: 4993.636667 | R143: 4330.092667 | S143: 3298.124667
A144: 82 | C144: =C70*$K$2 -> 7037.263333 | D144: 6168.246 | E144: 4993.636667 | F144: 4330.092667 | G144: 3298.124667 | I144: 8279.133333 | J144: =J70*$K$2 -> 7256.76 | K144: 5874.866667 | L144: 5094.226667 | M144: 3880.146667 | O144: 7037.263333 | P144: 6168.246 | Q144: 4993.636667 | R144: 4330.092667 | S144: 3298.124667
A145: 83 | C145: =C71*$K$2 -> 7037.263333 | D145: 6168.246 | E145: 4993.636667 | F145: 4330.092667 | G145: 3298.124667 | I145: =I71*$K$2 -> 8279.133333 | J145: 7256.76 | K145: 5874.866667 | L145: 5094.226667 | M145: 3880.146667 | O145: =I145*0.85 -> 7037.263333 | P145: =J145*0.85 -> 6168.246 | Q145: =K145*0.85 -> 4993.636667 | R145: =L145*0.85 -> 4330.092667 | S145: =M145*0.85 -> 3298.124667
A146: 84 | B146: o más | C146: =C72*$K$2 -> 7037.263333 | D146: 6168.246 | E146: 4993.636667 | F146: 4330.092667 | G146: 3298.124667 | I146: 8279.133333 | J146: 7256.76 | K146: 5874.866667 | L146: 5094.226667 | M146: 3880.146667 | O146: =I146*0.85 -> 7037.263333 | P146: =J146*0.85 -> 6168.246 | Q146: =K146*0.85 -> 4993.636667 | R146: =L146*0.85 -> 4330.092667 | S146: =M146*0.85 -> 3298.124667
A147: 1 | B147: Hijo | C147: =C73*$K$2 -> 333.8346667 | D147: 292.5813333 | E147: 244.664 | F147: 212.2166667 | G147: 161.6813333 | I147: 392.7466667 | J147: 344.2133333 | K147: 287.84 | L147: 249.6666667 | M147: 190.2133333 | O147: =I147*0.85 -> 333.8346667 | P147: 292.5813333 | Q147: 244.664 | R147: 212.2166667 | S147: 161.6813333
A148: 2 | B148: Hijos | C148: =C74*$K$2 -> 567.154 | D148: 497.2613333 | E148: 415.8653333 | F148: 360.7286667 | G148: 274.8106667 | I148: 667.24 | J148: 585.0133333 | K148: 489.2533333 | L148: 424.3866667 | M148: 323.3066667 | O148: =I148*0.85 -> 567.154 | P148: =J148*0.85 -> 497.2613333 | Q148: =K148*0.85 -> 415.8653333 | R148: =L148*0.85 -> 360.7286667 | S148: =M148*0.85 -> 274.8106667
A149: 3 | B149: Hijos o más | C149: =C75*$K$2 -> 800.7906667 | D149: 701.862 | E149: 587.0666667 | F149: 509.082 | G149: 387.8606667 | I149: 942.1066667 | J149: 825.72 | K149: 690.6666667 | L149: 598.92 | M149: 456.3066667 | O149: 800.7906667 | P149: 701.862 | Q149: 587.0666667 | R149: 509.082 | S149: 387.8606667
A151: BUPA GLOBAL PREMIER
A152: TARIFAS ANUALES
A153: EDAD
C154: 250 | D154: 2000 | E154: 5000 | F154: 10000 | U154: 2 | V154: 6 | W154: 10 | X154: 14 | Y154: 18
A155: 18 | B155: 18 | C155: =O155 -> 4448.56 | D155: =P155 -> 4035.12 | E155: 3035.52 | F155: 2217.48 | G155: 0 | I155: 6542 | J155: 5934 | K155: 4464 | L155: 3261 | O155: =I155*0.68 -> 4448.56 | P155: =J155*0.68 -> 4035.12 | Q155: 3035.52 | R155: 2217.48 | U155: 0 | V155: 0 | W155: 0 | X155: 0 | Y155: 0
A156: 19 | B156: 18 | C156: =O156 -> 4448.56 | D156: =P156 -> 4035.12 | E156: =Q156 -> 3035.52 | F156: =R156 -> 2217.48 | G156: =S156 -> 0 | I156: 6542 | J156: 5934 | K156: 4464 | L156: 3261 | O156: =I156*0.68 -> 4448.56 | P156: =J156*0.68 -> 4035.12 | Q156: =K156*0.68 -> 3035.52 | R156: =L156*0.68 -> 2217.48 | U156: 0 | V156: 0 | W156: 0 | X156: 0 | Y156: 0
A157: 20 | B157: 18 | C157: 4448.56 | D157: 4035.12 | E157: 3035.52 | F157: 2217.48 | G157: 0 | I157: 6542 | J157: 5934 | K157: 4464 | L157: 3261 | O157: 4448.56 | P157: 4035.12 | Q157: 3035.52 | R157: 2217.48 | U157: 0 | V157: 0 | W157: 0 | X157: 0 | Y157: 0
A158: 21 | B158: 18 | C158: 4448.56 | D158: 4035.12 | E158: 3035.52 | F158: 2217.48 | G158: 0 | I158: 6542 | J158: 5934 | K158: 4464 | L158: 3261 | O158: 4448.56 | P158: 4035.12 | Q158: 3035.52 | R158: 2217.48 | U158: 0 | V158: 0 | W158: 0 | X158: 0 | Y158: 0
A159: 22 | B159: 18 | C159: 4448.56 | D159: 4035.12 | E159: 3035.52 | F159: 2217.48 | G159: 0 | I159: 6542 | J159: 5934 | K159: 4464 | L159: 3261 | O159: 4448.56 | P159: 4035.12 | Q159: 3035.52 | R159: 2217.48 | U159: 0 | V159: 0 | W159: 0 | X159: 0 | Y159: 0
A160: 23 | B160: 18 | C160: 4448.56 | D160: 4035.12 | E160: 3035.52 | F160: 2217.48 | G160: 0 | I160: 6542 | J160: 5934 | K160: 4464 | L160: 3261 | O160: 4448.56 | P160: 4035.12 | Q160: 3035.52 | R160: 2217.48 | U160: 0 | V160: 0 | W160: 0 | X160: 0 | Y160: 0
A161: 24 | B161: 18 | C161: 4448.56 | D161: 4035.12 | E161: 3035.52 | F161: 2217.48 | G161: 0 | I161: 6542 | J161: 5934 | K161: 4464 | L161: 3261 | O161: 4448.56 | P161: 4035.12 | Q161: 3035.52 | R161: 2217.48 | U161: 0 | V161: 0 | W161: 0 | X161: 0 | Y161: 0
A162: 25 | B162: 25 | C162: 4754.56 | D162: 4311.88 | E162: 3209.6 | F162: 2345.32 | G162: 0 | I162: 6992 | J162: 6341 | K162: 4720 | L162: 3449 | O162: 4754.56 | P162: 4311.88 | Q162: 3209.6 | R162: 2345.32 | U162: 0 | V162: 0 | W162: 0 | X162: 0 | Y162: 0
A163: 26 | B163: 25 | C163: 4754.56 | D163: 4311.88 | E163: 3209.6 | F163: 2345.32 | G163: 0 | I163: 6992 | J163: 6341 | K163: 4720 | L163: 3449 | O163: 4754.56 | P163: 4311.88 | Q163: 3209.6 | R163: 2345.32 | U163: 0 | V163: 0 | W163: 0 | X163: 0 | Y163: 0
A164: 27 | B164: 25 | C164: 4754.56 | D164: 4311.88 | E164: 3209.6 | F164: 2345.32 | G164: 0 | I164: 6992 | J164: 6341 | K164: 4720 | L164: 3449 | O164: 4754.56 | P164: 4311.88 | Q164: 3209.6 | R164: 2345.32 | U164: 0 | V164: 0 | W164: 0 | X164: 0 | Y164: 0
A165: 28 | B165: 25 | C165: 4754.56 | D165: 4311.88 | E165: 3209.6 | F165: 2345.32 | G165: 0 | I165: 6992 | J165: 6341 | K165: 4720 | L165: 3449 | O165: 4754.56 | P165: 4311.88 | Q165: 3209.6 | R165: 2345.32 | U165: 0 | V165: 0 | W165: 0 | X165: 0 | Y165: 0
A166: 29 | B166: 25 | C166: 4754.56 | D166: 4311.88 | E166: 3209.6 | F166: 2345.32 | G166: 0 | I166: 6992 | J166: 6341 | K166: 4720 | L166: 3449 | O166: 4754.56 | P166: 4311.88 | Q166: 3209.6 | R166: 2345.32 | U166: 0 | V166: 0 | W166: 0 | X166: 0 | Y166: 0
A167: 30 | B167: 30 | C167: 5286.32 | D167: 4797.4 | E167: 3523.76 | F167: 2573.8 | G167: 0 | I167: 7774 | J167: 7055 | K167: 5182 | L167: 3785 | O167: 5286.32 | P167: 4797.4 | Q167: 3523.76 | R167: 2573.8 | U167: 0 | V167: 0 | W167: 0 | X167: 0 | Y167: 0
A168: 31 | B168: 30 | C168: 5286.32 | D168: 4797.4 | E168: 3523.76 | F168: 2573.8 | G168: 0 | I168: 7774 | J168: 7055 | K168: 5182 | L168: 3785 | O168: 5286.32 | P168: 4797.4 | Q168: 3523.76 | R168: 2573.8 | U168: 0 | V168: 0 | W168: 0 | X168: 0 | Y168: 0
A169: 32 | B169: 30 | C169: 5286.32 | D169: 4797.4 | E169: 3523.76 | F169: 2573.8 | G169: 0 | I169: 7774 | J169: 7055 | K169: 5182 | L169: 3785 | O169: 5286.32 | P169: 4797.4 | Q169: 3523.76 | R169: 2573.8 | U169: 0 | V169: 0 | W169: 0 | X169: 0 | Y169: 0
A170: 33 | B170: 30 | C170: 5286.32 | D170: 4797.4 | E170: 3523.76 | F170: 2573.8 | G170: 0 | I170: 7774 | J170: 7055 | K170: 5182 | L170: 3785 | O170: 5286.32 | P170: 4797.4 | Q170: 3523.76 | R170: 2573.8 | U170: 0 | V170: 0 | W170: 0 | X170: 0 | Y170: 0
A171: 34 | B171: 30 | C171: 5286.32 | D171: 4797.4 | E171: 3523.76 | F171: 2573.8 | G171: 0 | I171: 7774 | J171: 7055 | K171: 5182 | L171: 3785 | O171: 5286.32 | P171: 4797.4 | Q171: 3523.76 | R171: 2573.8 | U171: 0 | V171: 0 | W171: 0 | X171: 0 | Y171: 0
A172: 35 | B172: 35 | C172: 5899 | D172: 5354.32 | E172: 3895.04 | F172: 2845.12 | G172: 0 | I172: 8675 | J172: 7874 | K172: 5728 | L172: 4184 | O172: 5899 | P172: 5354.32 | Q172: 3895.04 | R172: 2845.12 | U172: 0 | V172: 0 | W172: 0 | X172: 0 | Y172: 0
A173: 36 | B173: 35 | C173: 5899 | D173: 5354.32 | E173: 3895.04 | F173: 2845.12 | G173: 0 | I173: 8675 | J173: 7874 | K173: 5728 | L173: 4184 | O173: 5899 | P173: 5354.32 | Q173: 3895.04 | R173: 2845.12 | U173: 0 | V173: 0 | W173: 0 | X173: 0 | Y173: 0
A174: 37 | B174: 35 | C174: 5899 | D174: 5354.32 | E174: 3895.04 | F174: 2845.12 | G174: 0 | I174: 8675 | J174: 7874 | K174: 5728 | L174: 4184 | O174: 5899 | P174: 5354.32 | Q174: 3895.04 | R174: 2845.12 | U174: 0 | V174: 0 | W174: 0 | X174: 0 | Y174: 0
A175: 38 | B175: 35 | C175: 5899 | D175: 5354.32 | E175: 3895.04 | F175: 2845.12 | G175: 0 | I175: 8675 | J175: 7874 | K175: 5728 | L175: 4184 | O175: 5899 | P175: 5354.32 | Q175: 3895.04 | R175: 2845.12 | U175: 0 | V175: 0 | W175: 0 | X175: 0 | Y175: 0
A176: 39 | B176: 35 | C176: 5899 | D176: 5354.32 | E176: 3895.04 | F176: 2845.12 | G176: 0 | I176: 8675 | J176: 7874 | K176: 5728 | L176: 4184 | O176: 5899 | P176: 5354.32 | Q176: 3895.04 | R176: 2845.12 | U176: 0 | V176: 0 | W176: 0 | X176: 0 | Y176: 0
A177: 40 | B177: 40 | C177: 6827.88 | D177: 6196.84 | E177: 4472.36 | F177: 3268.76 | G177: 0 | I177: 10041 | J177: 9113 | K177: 6577 | L177: 4807 | O177: 6827.88 | P177: 6196.84 | Q177: 4472.36 | R177: 3268.76 | U177: 0 | V177: 0 | W177: 0 | X177: 0 | Y177: 0
A178: 41 | B178: 40 | C178: 6827.88 | D178: 6196.84 | E178: 4472.36 | F178: 3268.76 | G178: 0 | I178: 10041 | J178: 9113 | K178: 6577 | L178: 4807 | O178: 6827.88 | P178: 6196.84 | Q178: 4472.36 | R178: 3268.76 | U178: 0 | V178: 0 | W178: 0 | X178: 0 | Y178: 0
A179: 42 | B179: 40 | C179: 6827.88 | D179: 6196.84 | E179: 4472.36 | F179: 3268.76 | G179: 0 | I179: 10041 | J179: 9113 | K179: 6577 | L179: 4807 | O179: 6827.88 | P179: 6196.84 | Q179: 4472.36 | R179: 3268.76 | U179: 0 | V179: 0 | W179: 0 | X179: 0 | Y179: 0
A180: 43 | B180: 40 | C180: 6827.88 | D180: 6196.84 | E180: 4472.36 | F180: 3268.76 | G180: 0 | I180: 10041 | J180: 9113 | K180: 6577 | L180: 4807 | O180: 6827.88 | P180: 6196.84 | Q180: 4472.36 | R180: 3268.76 | U180: 0 | V180: 0 | W180: 0 | X180: 0 | Y180: 0
A181: 44 | B181: 40 | C181: 6827.88 | D181: 6196.84 | E181: 4472.36 | F181: 3268.76 | G181: 0 | I181: 10041 | J181: 9113 | K181: 6577 | L181: 4807 | O181: 6827.88 | P181: 6196.84 | Q181: 4472.36 | R181: 3268.76 | U181: 0 | V181: 0 | W181: 0 | X181: 0 | Y181: 0
A182: 45 | B182: 45 | C182: 7640.48 | D182: 6934.64 | E182: 4977.6 | F182: 3635.96 | G182: 0 | I182: 11236 | J182: 10198 | K182: 7320 | L182: 5347 | O182: 7640.48 | P182: 6934.64 | Q182: 4977.6 | R182: 3635.96 | U182: 0 | V182: 0 | W182: 0 | X182: 0 | Y182: 0
A183: 46 | B183: 45 | C183: 7640.48 | D183: 6934.64 | E183: 4977.6 | F183: 3635.96 | G183: 0 | I183: 11236 | J183: 10198 | K183: 7320 | L183: 5347 | O183: 7640.48 | P183: 6934.64 | Q183: 4977.6 | R183: 3635.96 | U183: 0 | V183: 0 | W183: 0 | X183: 0 | Y183: 0
A184: 47 | B184: 45 | C184: 7640.48 | D184: 6934.64 | E184: 4977.6 | F184: 3635.96 | G184: 0 | I184: 11236 | J184: 10198 | K184: 7320 | L184: 5347 | O184: 7640.48 | P184: 6934.64 | Q184: 4977.6 | R184: 3635.96 | U184: 0 | V184: 0 | W184: 0 | X184: 0 | Y184: 0
A185: 48 | B185: 45 | C185: 7640.48 | D185: 6934.64 | E185: 4977.6 | F185: 3635.96 | G185: 0 | I185: 11236 | J185: 10198 | K185: 7320 | L185: 5347 | O185: 7640.48 | P185: 6934.64 | Q185: 4977.6 | R185: 3635.96 | U185: 0 | V185: 0 | W185: 0 | X185: 0 | Y185: 0
A186: 49 | B186: 45 | C186: 7640.48 | D186: 6934.64 | E186: 4977.6 | F186: 3635.96 | G186: 0 | I186: 11236 | J186: 10198 | K186: 7320 | L186: 5347 | O186: 7640.48 | P186: 6934.64 | Q186: 4977.6 | R186: 3635.96 | U186: 0 | V186: 0 | W186: 0 | X186: 0 | Y186: 0
A187: 50 | B187: 50 | C187: 8833.88 | D187: 8015.84 | E187: 5731.72 | F187: 4188.8 | G187: 0 | I187: 12991 | J187: 11788 | K187: 8429 | L187: 6160 | O187: 8833.88 | P187: 8015.84 | Q187: 5731.72 | R187: 4188.8 | U187: 0 | V187: 0 | W187: 0 | X187: 0 | Y187: 0
A188: 51 | B188: 50 | C188: 8833.88 | D188: 8015.84 | E188: 5731.72 | F188: 4188.8 | G188: 0 | I188: 12991 | J188: 11788 | K188: 8429 | L188: 6160 | O188: 8833.88 | P188: 8015.84 | Q188: 5731.72 | R188: 4188.8 | U188: 0 | V188: 0 | W188: 0 | X188: 0 | Y188: 0
A189: 52 | B189: 50 | C189: 8833.88 | D189: 8015.84 | E189: 5731.72 | F189: 4188.8 | G189: 0 | I189: 12991 | J189: 11788 | K189: 8429 | L189: 6160 | O189: 8833.88 | P189: 8015.84 | Q189: 5731.72 | R189: 4188.8 | U189: 0 | V189: 0 | W189: 0 | X189: 0 | Y189: 0
A190: 53 | B190: 50 | C190: 8833.88 | D190: 8015.84 | E190: 5731.72 | F190: 4188.8 | G190: 0 | I190: 12991 | J190: 11788 | K190: 8429 | L190: 6160 | O190: 8833.88 | P190: 8015.84 | Q190: 5731.72 | R190: 4188.8 | U190: 0 | V190: 0 | W190: 0 | X190: 0 | Y190: 0
A191: 54 | B191: 50 | C191: 8833.88 | D191: 8015.84 | E191: 5731.72 | F191: 4188.8 | G191: 0 | I191: 12991 | J191: 11788 | K191: 8429 | L191: 6160 | O191: 8833.88 | P191: 8015.84 | Q191: 5731.72 | R191: 4188.8 | U191: 0 | V191: 0 | W191: 0 | X191: 0 | Y191: 0
A192: 55 | B192: 55 | C192: 9873.6 | D192: 8961.72 | E192: 6390.64 | F192: 4670.24 | G192: 0 | I192: 14520 | J192: 13179 | K192: 9398 | L192: 6868 | O192: 9873.6 | P192: 8961.72 | Q192: 6390.64 | R192: 4670.24 | U192: 0 | V192: 0 | W192: 0 | X192: 0 | Y192: 0
A193: 56 | B193: 55 | C193: 9873.6 | D193: 8961.72 | E193: 6390.64 | F193: 4670.24 | G193: 0 | I193: 14520 | J193: 13179 | K193: 9398 | L193: 6868 | O193: 9873.6 | P193: 8961.72 | Q193: 6390.64 | R193: 4670.24 | U193: 0 | V193: 0 | W193: 0 | X193: 0 | Y193: 0
A194: 57 | B194: 55 | C194: 9873.6 | D194: 8961.72 | E194: 6390.64 | F194: 4670.24 | G194: 0 | I194: 14520 | J194: 13179 | K194: 9398 | L194: 6868 | O194: 9873.6 | P194: 8961.72 | Q194: 6390.64 | R194: 4670.24 | U194: 0 | V194: 0 | W194: 0 | X194: 0 | Y194: 0
A195: 58 | B195: 55 | C195: 9873.6 | D195: 8961.72 | E195: 6390.64 | F195: 4670.24 | G195: 0 | I195: 14520 | J195: 13179 | K195: 9398 | L195: 6868 | O195: 9873.6 | P195: 8961.72 | Q195: 6390.64 | R195: 4670.24 | U195: 0 | V195: 0 | W195: 0 | X195: 0 | Y195: 0
A196: 59 | B196: 55 | C196: 9873.6 | D196: 8961.72 | E196: 6390.64 | F196: 4670.24 | G196: 0 | I196: 14520 | J196: 13179 | K196: 9398 | L196: 6868 | O196: 9873.6 | P196: 8961.72 | Q196: 6390.64 | R196: 4670.24 | U196: 0 | V196: 0 | W196: 0 | X196: 0 | Y196: 0
A197: 60 | B197: 60 | C197: 10567.88 | D197: 9588.68 | E197: 6831.28 | F197: 4990.52 | G197: 0 | I197: 15541 | J197: 14101 | K197: 10046 | L197: 7339 | O197: 10567.88 | P197: 9588.68 | Q197: 6831.28 | R197: 4990.52 | U197: 0 | V197: 0 | W197: 0 | X197: 0 | Y197: 0
A198: 61 | B198: 61 | C198: 11958.48 | D198: 10851.44 | E198: 7721.4 | F198: 5641.96 | G198: 0 | I198: 17586 | J198: 15958 | K198: 11355 | L198: 8297 | O198: 11958.48 | P198: 10851.44 | Q198: 7721.4 | R198: 5641.96 | U198: 0 | V198: 0 | W198: 0 | X198: 0 | Y198: 0
A199: 62 | B199: 62 | C199: 13284.48 | D199: 12057.08 | E199: 8576.16 | F199: 6266.2 | G199: 0 | I199: 19536 | J199: 17731 | K199: 12612 | L199: 9215 | O199: 13284.48 | P199: 12057.08 | Q199: 8576.16 | R199: 6266.2 | U199: 0 | V199: 0 | W199: 0 | X199: 0 | Y199: 0
A200: 63 | B200: 63 | C200: 14711.8 | D200: 13351.12 | E200: 9496.2 | F200: 6937.36 | G200: 0 | I200: 21635 | J200: 19634 | K200: 13965 | L200: 10202 | O200: 14711.8 | P200: 13351.12 | Q200: 9496.2 | R200: 6937.36 | U200: 0 | V200: 0 | W200: 0 | X200: 0 | Y200: 0
A201: 64 | B201: 64 | C201: 16238.4 | D201: 14737.64 | E201: 10485.6 | F201: 7660.2 | G201: 0 | I201: 23880 | J201: 21673 | K201: 15420 | L201: 11265 | O201: 16238.4 | P201: 14737.64 | Q201: 10485.6 | R201: 7660.2 | U201: 0 | V201: 0 | W201: 0 | X201: 0 | Y201: 0
A202: 65 | B202: 65 | C202: 17865.64 | D202: 16213.92 | E202: 11543 | F202: 8433.36 | G202: 0 | I202: 26273 | J202: 23844 | K202: 16975 | L202: 12402 | O202: 17865.64 | P202: 16213.92 | Q202: 11543 | R202: 8433.36 | U202: 0 | V202: 0 | W202: 0 | X202: 0 | Y202: 0
A203: 66 | B203: 66 | C203: 19593.52 | D203: 17779.28 | E203: 12669.08 | F203: 9255.48 | G203: 0 | I203: 28814 | J203: 26146 | K203: 18631 | L203: 13611 | O203: 19593.52 | P203: 17779.28 | Q203: 12669.08 | R203: 9255.48 | U203: 0 | V203: 0 | W203: 0 | X203: 0 | Y203: 0
... 1275 more rows
